Workbook

Sheet Instructions
A1: Instructions to User This spreadsheet is provided by BWU in an attempt to standardize and streamline the calculation and review of sewer capacity studies within BWU's service area. It is intended to be used with BWU's sewer study guidelines and supplemental references. Calculations are organized by blocks, with one block required per line segment. The intent is to begin at the top of the page with the most upstream segment in the study and continue downstream with a new calculation block for each line segment. Additional blocks can be added as needed by clicking the button to the right. Cells with red text require user input. The rest of the spreadsheet, including the summary table, will auto-calculate as information is filled in. For each segment, the user will input the following information: - Development information: One line per parcel/development. Provide the development name and type, unit count and description and daily flow per unit. Additional rows can be added as needed by clicking the button to the right. Only the direct inflows to the current segment need to be added. The spreadsheet will automatically carry over the flow from the connecting upstream main. - Pipe information: Input the upstream and downstream manhole ID's from the city's GIS. Input upstream and downstream inverts. Input pipe length and size. There are various sources for this informatin including GIS, As-builts, Survey, etc. Any information used must be verified by the EOR performing the calculations.

Sheet Capacity Calculations
A1: ="MH "&B5&" to MH "&B7 -> MH x to MH y | B1: Development Type | C1: Unit Count | D1: Unit Description | E1: GPD/unit | F1: Total GPD | G1: Eq. Population | H1: Avg. Flow (gpm) | I1: Peaking Factor | J1: Peak Flow (gpm)
A2: Development Name | B2: Type | C2: 1 | D2: Unit | E2: 0 | F2: =C2*E2 -> 0 | G2: =F2/100 -> 0 | H2: =F2/1440 -> 0
A3: Carry over from upstream | F3: =IFERROR(INDEX($F$1:F2,MAX(_xlfn._xlws.FILTER(ROW($F$1:F2),$A$1:A2="Subtotal"))),"") -> 
A4: Subtotal | F4: =SUM(F2:F3) -> 0 | G4: =F4/100 -> 0 | H4: =F4/1440 -> 0 | I4: =(18+SQRT(G4/1000))/(4+SQRT(G4/1000)) -> 4.5 | J4: =I4*H4 -> 0
A5: Upstream Manhole ID | B5: x | C5: Pipe Slope (S) | D5: =(B6-B8)/B9 -> 0.1 | E5: ft/ft
A6: Upstream Invert (ft) | B6: 0.1 | C6: Pipe Radius | D6: =B10/12/2 -> 0.04166666667 | E6: ft
A7: Downstream Manhole ID | B7: y | C7: Full Area (Afull = π*r²) | D7: =PI()*(D6^2) -> 0.005454153912 | E7: ft^2
A8: Downstream Invert (ft) | B8: 0 | C8: Wetted Perimeter (P = 2*π*r) | D8: =2*PI()*D6 -> 0.2617993878 | E8: ft
A9: Pipe Length (ft) | B9: 1 | C9: Hydraulic Radius (R = A/P) | D9: =D7/D8 -> 0.02083333333 | E9: ft
A10: Pipe Size (in) | B10: 1 | C10: Entity ID | D10: =B5&"_"&B7 -> x_y
C11: Pipe Capacity | D11: =(1.49/0.013)*D7*(D9^(2/3))*(D5^(1/2))*448.83 -> 6.717763207 | E11: GAL/MIN
C12: Model Flow | D12: =IF(J4=0,"",J4) ->  | E12: GAL/MIN
C13: Capacity Utilized | D13: =IF(OR(D11=0, D12=0, D11="", D12=""), "", D12/D11) -> 
D14: Project Name Sewer Study
D15: Manhhole XXX-XXXX to XXX-XXXX
D16: City Project # LSD/PP XX-XXXX
D17: Revision # X - DATE
A19: ="MH "&B24&" to MH "&B26 -> MH xx-xxxx to MH yy-yyyy | B19: Development Type | C19: Unit Count | D19: Unit Description | E19: GPD/unit | F19: Total GPD | G19: Eq. Population | H19: Avg. Flow (gpm) | I19: Peaking Factor | J19: Peak Flow (gpm)
A20: Sample Development #1 | B20: Single Family Residence | C20: 1 | D20: Dwelling Unit | E20: 264 | F20: =C20*E20 -> 264 | G20: =F20/100 -> 2.64 | H20: =F20/1440 -> 0.1833333333
A21: Sample Development #2 | B21: Office Building - Employee | C21: 20 | D21: Employees | E21: 15 | F21: =C21*E21 -> 300 | G21: =F21/100 -> 3 | H21: =F21/1440 -> 0.2083333333
A22: Carry over from upstream | F22: =INDEX($F$1:F21,MAX(_xlfn._xlws.FILTER(ROW($F$1:F21),$A$1:A21="Subtotal"))) -> 0
A23: Subtotal | F23: =SUM(F20:F22) -> 564 | G23: =F23/100 -> 5.64 | H23: =F23/1440 -> 0.3916666667 | I23: =(18+SQRT(G23/1000))/(4+SQRT(G23/1000)) -> 4.435498572 | J23: =I23*H23 -> 1.737236941
A24: Upstream Manhole ID | B24: xx-xxxx | C24: Pipe Slope (S) | D24: =(B25-B27)/B28 -> 0.01 | E24: ft/ft
A25: Upstream Invert (ft) | B25: 4 | C25: Pipe Radius | D25: =B29/12/2 -> 0.3333333333 | E25: ft
A26: Downstream Manhole ID | B26: yy-yyyy | C26: Full Area (Afull = π*r²) | D26: =PI()*(D25^2) -> 0.3490658504 | E26: ft^2
A27: Downstream Invert (ft) | B27: 3 | C27: Wetted Perimeter (P = 2*π*r) | D27: =2*PI()*D25 -> 2.094395102 | E27: ft
A28: Pipe Length (ft) | B28: 100 | C28: Hydraulic Radius (R = A/P) | D28: =D26/D27 -> 0.1666666667 | E28: ft
A29: Pipe Size (in) | B29: 8 | C29: Entity ID | D29: =B24&"_"&B26 -> xx-xxxx_yy-yyyy
C30: Pipe Capacity | D30: =(1.49/0.013)*D26*(D28^(2/3))*(D24^(1/2))*448.83 -> 543.8318724 | E30: GAL/MIN
C31: Model Flow | D31: =IF(J23=0,"",J23) -> 1.737236941 | E31: GAL/MIN
C32: Capacity Utilized | D32: =IF(OR(D30=0, D31=0, D30="", D31=""), "", D31/D30) -> 0.003194437525
A34: ="MH "&B39&" to MH "&B41 -> MH yy-yyyy to MH zz-zzzz | B34: Development Type | C34: Unit Count | D34: Unit Description | E34: GPD/unit | F34: Total GPD | G34: Eq. Population | H34: Avg. Flow (gpm) | I34: Peaking Factor | J34: Peak Flow (gpm)
A35: Sample Development #3 | B35: Multifamily | C35: 10 | D35: Dwelling Units | E35: 264 | F35: =C35*E35 -> 2640 | G35: =F35/100 -> 26.4 | H35: =F35/1440 -> 1.833333333
A36: Sample Development #4 | B36: Restaurant | C36: 20 | D36: Seats | E36: 40 | F36: =C36*E36 -> 800 | G36: =F36/100 -> 8 | H36: =F36/1440 -> 0.5555555556
A37: Carry over from upstream | F37: =INDEX($F$1:F36,MAX(_xlfn._xlws.FILTER(ROW($F$1:F36),$A$1:A36="Subtotal"))) -> 564
A38: Subtotal | F38: =SUM(F35:F37) -> 4004 | G38: =F38/100 -> 40.04 | H38: =F38/1440 -> 2.780555556 | I38: =(18+SQRT(G38/1000))/(4+SQRT(G38/1000)) -> 4.33325399 | J38: =I38*H38 -> 12.04885346
A39: Upstream Manhole ID | B39: yy-yyyy | C39: Pipe Slope (S) | D39: =(B40-B42)/B43 -> 0.01 | E39: ft/ft
A40: Upstream Invert (ft) | B40: 2 | C40: Pipe Radius | D40: =B44/12/2 -> 0.3333333333 | E40: ft
A41: Downstream Manhole ID | B41: zz-zzzz | C41: Full Area (Afull = π*r²) | D41: =PI()*(D40^2) -> 0.3490658504 | E41: ft^2
A42: Downstream Invert (ft) | B42: 1 | C42: Wetted Perimeter (P = 2*π*r) | D42: =2*PI()*D40 -> 2.094395102 | E42: ft
A43: Pipe Length (ft) | B43: 100 | C43: Hydraulic Radius (R = A/P) | D43: =D41/D42 -> 0.1666666667 | E43: ft
A44: Pipe Size (in) | B44: 8 | C44: Entity ID | D44: =B39&"_"&B41 -> yy-yyyy_zz-zzzz
C45: Pipe Capacity | D45: =(1.49/0.013)*D41*(D43^(2/3))*(D39^(1/2))*448.83 -> 543.8318724 | E45: GAL/MIN
C46: Model Flow | D46: =IF(J38=0,"",J38) -> 12.04885346 | E46: GAL/MIN
C47: Capacity Utilized | D47: =IF(OR(D45=0, D46=0, D45="", D46=""), "", D46/D45) -> 0.022155475

Sheet Summary Table
A1: Entity ID (USMH_DSMH) | B1: Pipe Size (inches) | C1: Slope (decimal) | D1: Capacity (gpm) | E1: Proposed Peak Flow (gpm) | F1: Capacity Utilized (%)
A2: =_xlfn._xlws.FILTER('Capacity Calculations'!D14:D1048576,'Capacity Calculations'!C14:C1048576="Entity ID") -> xx-xxxx_yy-yyyy | B2: =IFERROR(INDEX('Capacity Calculations'!$B:$B,MATCH('Summary Table'!$A2,'Capacity Calculations'!$D:$D,0)),"") -> 8 | C2: =IFERROR(INDEX('Capacity Calculations'!$D:$D,MATCH('Summary Table'!$A2,'Capacity Calculations'!$D:$D,0)-5),"") -> 0.01 | D2: =IFERROR(INDEX('Capacity Calculations'!$D:$D,MATCH('Summary Table'!$A2,'Capacity Calculations'!$D:$D,0)+1),"") -> 543.8318724 | E2: =IFERROR(INDEX('Capacity Calculations'!$D:$D,MATCH('Summary Table'!$A2,'Capacity Calculations'!$D:$D,0)+2),"") -> 1.737236941 | F2: =IFERROR(INDEX('Capacity Calculations'!$D:$D,MATCH('Summary Table'!$A2,'Capacity Calculations'!$D:$D,0)+3),"") -> 0.003194437525
A3: yy-yyyy_zz-zzzz | B3: =IFERROR(INDEX('Capacity Calculations'!$B:$B,MATCH('Summary Table'!$A3,'Capacity Calculations'!$D:$D,0)),"") -> 8 | C3: =IFERROR(INDEX('Capacity Calculations'!$D:$D,MATCH('Summary Table'!$A3,'Capacity Calculations'!$D:$D,0)-5),"") -> 0.01 | D3: =IFERROR(INDEX('Capacity Calculations'!$D:$D,MATCH('Summary Table'!$A3,'Capacity Calculations'!$D:$D,0)+1),"") -> 543.8318724 | E3: =IFERROR(INDEX('Capacity Calculations'!$D:$D,MATCH('Summary Table'!$A3,'Capacity Calculations'!$D:$D,0)+2),"") -> 12.04885346 | F3: =IFERROR(INDEX('Capacity Calculations'!$D:$D,MATCH('Summary Table'!$A3,'Capacity Calculations'!$D:$D,0)+3),"") -> 0.022155475
B4: =IFERROR(INDEX('Capacity Calculations'!$B:$B,MATCH('Summary Table'!$A4,'Capacity Calculations'!$D:$D,0)),"") ->  | C4: =IFERROR(INDEX('Capacity Calculations'!$D:$D,MATCH('Summary Table'!$A4,'Capacity Calculations'!$D:$D,0)-5),"") ->  | D4: =IFERROR(INDEX('Capacity Calculations'!$D:$D,MATCH('Summary Table'!$A4,'Capacity Calculations'!$D:$D,0)+1),"") ->  | E4: =IFERROR(INDEX('Capacity Calculations'!$D:$D,MATCH('Summary Table'!$A4,'Capacity Calculations'!$D:$D,0)+2),"") ->  | F4: =IFERROR(INDEX('Capacity Calculations'!$D:$D,MATCH('Summary Table'!$A4,'Capacity Calculations'!$D:$D,0)+3),"") -> 
B5: =IFERROR(INDEX('Capacity Calculations'!$B:$B,MATCH('Summary Table'!$A5,'Capacity Calculations'!$D:$D,0)),"") ->  | C5: =IFERROR(INDEX('Capacity Calculations'!$D:$D,MATCH('Summary Table'!$A5,'Capacity Calculations'!$D:$D,0)-5),"") ->  | D5: =IFERROR(INDEX('Capacity Calculations'!$D:$D,MATCH('Summary Table'!$A5,'Capacity Calculations'!$D:$D,0)+1),"") ->  | E5: =IFERROR(INDEX('Capacity Calculations'!$D:$D,MATCH('Summary Table'!$A5,'Capacity Calculations'!$D:$D,0)+2),"") ->  | F5: =IFERROR(INDEX('Capacity Calculations'!$D:$D,MATCH('Summary Table'!$A5,'Capacity Calculations'!$D:$D,0)+3),"") -> 
B6: =IFERROR(INDEX('Capacity Calculations'!$B:$B,MATCH('Summary Table'!$A6,'Capacity Calculations'!$D:$D,0)),"") ->  | C6: =IFERROR(INDEX('Capacity Calculations'!$D:$D,MATCH('Summary Table'!$A6,'Capacity Calculations'!$D:$D,0)-5),"") ->  | D6: =IFERROR(INDEX('Capacity Calculations'!$D:$D,MATCH('Summary Table'!$A6,'Capacity Calculations'!$D:$D,0)+1),"") ->  | E6: =IFERROR(INDEX('Capacity Calculations'!$D:$D,MATCH('Summary Table'!$A6,'Capacity Calculations'!$D:$D,0)+2),"") ->  | F6: =IFERROR(INDEX('Capacity Calculations'!$D:$D,MATCH('Summary Table'!$A6,'Capacity Calculations'!$D:$D,0)+3),"") -> 
B7: =IFERROR(INDEX('Capacity Calculations'!$B:$B,MATCH('Summary Table'!$A7,'Capacity Calculations'!$D:$D,0)),"") ->  | C7: =IFERROR(INDEX('Capacity Calculations'!$D:$D,MATCH('Summary Table'!$A7,'Capacity Calculations'!$D:$D,0)-5),"") ->  | D7: =IFERROR(INDEX('Capacity Calculations'!$D:$D,MATCH('Summary Table'!$A7,'Capacity Calculations'!$D:$D,0)+1),"") ->  | E7: =IFERROR(INDEX('Capacity Calculations'!$D:$D,MATCH('Summary Table'!$A7,'Capacity Calculations'!$D:$D,0)+2),"") ->  | F7: =IFERROR(INDEX('Capacity Calculations'!$D:$D,MATCH('Summary Table'!$A7,'Capacity Calculations'!$D:$D,0)+3),"") -> 
B8: =IFERROR(INDEX('Capacity Calculations'!$B:$B,MATCH('Summary Table'!$A8,'Capacity Calculations'!$D:$D,0)),"") ->  | C8: =IFERROR(INDEX('Capacity Calculations'!$D:$D,MATCH('Summary Table'!$A8,'Capacity Calculations'!$D:$D,0)-5),"") ->  | D8: =IFERROR(INDEX('Capacity Calculations'!$D:$D,MATCH('Summary Table'!$A8,'Capacity Calculations'!$D:$D,0)+1),"") ->  | E8: =IFERROR(INDEX('Capacity Calculations'!$D:$D,MATCH('Summary Table'!$A8,'Capacity Calculations'!$D:$D,0)+2),"") ->  | F8: =IFERROR(INDEX('Capacity Calculations'!$D:$D,MATCH('Summary Table'!$A8,'Capacity Calculations'!$D:$D,0)+3),"") -> 
B9: =IFERROR(INDEX('Capacity Calculations'!$B:$B,MATCH('Summary Table'!$A9,'Capacity Calculations'!$D:$D,0)),"") ->  | C9: =IFERROR(INDEX('Capacity Calculations'!$D:$D,MATCH('Summary Table'!$A9,'Capacity Calculations'!$D:$D,0)-5),"") ->  | D9: =IFERROR(INDEX('Capacity Calculations'!$D:$D,MATCH('Summary Table'!$A9,'Capacity Calculations'!$D:$D,0)+1),"") ->  | E9: =IFERROR(INDEX('Capacity Calculations'!$D:$D,MATCH('Summary Table'!$A9,'Capacity Calculations'!$D:$D,0)+2),"") ->  | F9: =IFERROR(INDEX('Capacity Calculations'!$D:$D,MATCH('Summary Table'!$A9,'Capacity Calculations'!$D:$D,0)+3),"") -> 
B10: =IFERROR(INDEX('Capacity Calculations'!$B:$B,MATCH('Summary Table'!$A10,'Capacity Calculations'!$D:$D,0)),"") ->  | C10: =IFERROR(INDEX('Capacity Calculations'!$D:$D,MATCH('Summary Table'!$A10,'Capacity Calculations'!$D:$D,0)-5),"") ->  | D10: =IFERROR(INDEX('Capacity Calculations'!$D:$D,MATCH('Summary Table'!$A10,'Capacity Calculations'!$D:$D,0)+1),"") ->  | E10: =IFERROR(INDEX('Capacity Calculations'!$D:$D,MATCH('Summary Table'!$A10,'Capacity Calculations'!$D:$D,0)+2),"") ->  | F10: =IFERROR(INDEX('Capacity Calculations'!$D:$D,MATCH('Summary Table'!$A10,'Capacity Calculations'!$D:$D,0)+3),"") -> 
B11: =IFERROR(INDEX('Capacity Calculations'!$B:$B,MATCH('Summary Table'!$A11,'Capacity Calculations'!$D:$D,0)),"") ->  | C11: =IFERROR(INDEX('Capacity Calculations'!$D:$D,MATCH('Summary Table'!$A11,'Capacity Calculations'!$D:$D,0)-5),"") ->  | D11: =IFERROR(INDEX('Capacity Calculations'!$D:$D,MATCH('Summary Table'!$A11,'Capacity Calculations'!$D:$D,0)+1),"") ->  | E11: =IFERROR(INDEX('Capacity Calculations'!$D:$D,MATCH('Summary Table'!$A11,'Capacity Calculations'!$D:$D,0)+2),"") ->  | F11: =IFERROR(INDEX('Capacity Calculations'!$D:$D,MATCH('Summary Table'!$A11,'Capacity Calculations'!$D:$D,0)+3),"") -> 
B12: =IFERROR(INDEX('Capacity Calculations'!$B:$B,MATCH('Summary Table'!$A12,'Capacity Calculations'!$D:$D,0)),"") ->  | C12: =IFERROR(INDEX('Capacity Calculations'!$D:$D,MATCH('Summary Table'!$A12,'Capacity Calculations'!$D:$D,0)-5),"") ->  | D12: =IFERROR(INDEX('Capacity Calculations'!$D:$D,MATCH('Summary Table'!$A12,'Capacity Calculations'!$D:$D,0)+1),"") ->  | E12: =IFERROR(INDEX('Capacity Calculations'!$D:$D,MATCH('Summary Table'!$A12,'Capacity Calculations'!$D:$D,0)+2),"") ->  | F12: =IFERROR(INDEX('Capacity Calculations'!$D:$D,MATCH('Summary Table'!$A12,'Capacity Calculations'!$D:$D,0)+3),"") -> 
B13: =IFERROR(INDEX('Capacity Calculations'!$B:$B,MATCH('Summary Table'!$A13,'Capacity Calculations'!$D:$D,0)),"") ->  | C13: =IFERROR(INDEX('Capacity Calculations'!$D:$D,MATCH('Summary Table'!$A13,'Capacity Calculations'!$D:$D,0)-5),"") ->  | D13: =IFERROR(INDEX('Capacity Calculations'!$D:$D,MATCH('Summary Table'!$A13,'Capacity Calculations'!$D:$D,0)+1),"") ->  | E13: =IFERROR(INDEX('Capacity Calculations'!$D:$D,MATCH('Summary Table'!$A13,'Capacity Calculations'!$D:$D,0)+2),"") ->  | F13: =IFERROR(INDEX('Capacity Calculations'!$D:$D,MATCH('Summary Table'!$A13,'Capacity Calculations'!$D:$D,0)+3),"") -> 
B14: =IFERROR(INDEX('Capacity Calculations'!$B:$B,MATCH('Summary Table'!$A14,'Capacity Calculations'!$D:$D,0)),"") ->  | C14: =IFERROR(INDEX('Capacity Calculations'!$D:$D,MATCH('Summary Table'!$A14,'Capacity Calculations'!$D:$D,0)-5),"") ->  | D14: =IFERROR(INDEX('Capacity Calculations'!$D:$D,MATCH('Summary Table'!$A14,'Capacity Calculations'!$D:$D,0)+1),"") ->  | E14: =IFERROR(INDEX('Capacity Calculations'!$D:$D,MATCH('Summary Table'!$A14,'Capacity Calculations'!$D:$D,0)+2),"") ->  | F14: =IFERROR(INDEX('Capacity Calculations'!$D:$D,MATCH('Summary Table'!$A14,'Capacity Calculations'!$D:$D,0)+3),"") -> 
B15: =IFERROR(INDEX('Capacity Calculations'!$B:$B,MATCH('Summary Table'!$A15,'Capacity Calculations'!$D:$D,0)),"") ->  | C15: =IFERROR(INDEX('Capacity Calculations'!$D:$D,MATCH('Summary Table'!$A15,'Capacity Calculations'!$D:$D,0)-5),"") ->  | D15: =IFERROR(INDEX('Capacity Calculations'!$D:$D,MATCH('Summary Table'!$A15,'Capacity Calculations'!$D:$D,0)+1),"") ->  | E15: =IFERROR(INDEX('Capacity Calculations'!$D:$D,MATCH('Summary Table'!$A15,'Capacity Calculations'!$D:$D,0)+2),"") ->  | F15: =IFERROR(INDEX('Capacity Calculations'!$D:$D,MATCH('Summary Table'!$A15,'Capacity Calculations'!$D:$D,0)+3),"") -> 
B16: =IFERROR(INDEX('Capacity Calculations'!$B:$B,MATCH('Summary Table'!$A16,'Capacity Calculations'!$D:$D,0)),"") ->  | C16: =IFERROR(INDEX('Capacity Calculations'!$D:$D,MATCH('Summary Table'!$A16,'Capacity Calculations'!$D:$D,0)-5),"") ->  | D16: =IFERROR(INDEX('Capacity Calculations'!$D:$D,MATCH('Summary Table'!$A16,'Capacity Calculations'!$D:$D,0)+1),"") ->  | E16: =IFERROR(INDEX('Capacity Calculations'!$D:$D,MATCH('Summary Table'!$A16,'Capacity Calculations'!$D:$D,0)+2),"") ->  | F16: =IFERROR(INDEX('Capacity Calculations'!$D:$D,MATCH('Summary Table'!$A16,'Capacity Calculations'!$D:$D,0)+3),"") -> 

Sheet void Proposed (hidden)
A1: McAuley Place Sewer Study
A2: Manhhole 484-6536 to 484-1303 - Existing Flows
A3: Crafton Tull Job # 20112100
A4: =TODAY() -> 2025-12-04
A5: MH 484-6536 to 484-6537 | B5: Type | C5: Units | D5: Capacity/unit | E5: gdp/cap | F5: gal/day | G5: Avg. Flow (gpm) | H5: Population | I5: Peaking Factor | J5: Calc. Peak (gpm)
A6: Mercy Clinic Pediatric | B6: Hospital - Employees | C6: 25 | D6: =VLOOKUP(B6,#REF!,2,FALSE) ->  | E6: =VLOOKUP(B6,#REF!,3,FALSE) ->  | F6: =C6*E6*D6 ->  | G6: =F6/24/60 ->  | H6: =D6*C6 ->  | O6: Facility Assumption | P6: Persons/Unit | Q6: gal/person/day
A7: Mercy Clinic Pediatric | B7: Hospital - Bed | C7: 75 | D7: =VLOOKUP(B7,#REF!,2,FALSE) ->  | E7: =VLOOKUP(B7,#REF!,3,FALSE) ->  | F7: =C7*E7*D7 ->  | G7: =F7/24/60 ->  | H7: =D7*C7 -> 
A8: Sub total from existing | F8: =SUM(F6:F7) ->  | G8: =SUM(G6:G7) ->  | H8: =SUM(H6:H7) ->  | I8: =(18+SQRT(H8/1000))/(4+SQRT(H8/1000)) ->  | J8: =I8*G8 ->  | O8: Apartment | P8: 2 | Q8: 120
A9: Pipe Size (in) | B9: 8 | C9: Design Flow | D9: =(1.49/0.013)*B12*(B14^(2/3))*(B10^(1/2)) -> 0.7663246134 | E9: FT³/S | O9: Assembly Hall | P9: 1 | Q9: 4
A10: Pipe Slope (S) (FT/FT) | B10: 0.004 | C10: Design Flow | D10: =D9*60 -> 45.9794768 | E10: FT³/MIN | O10: Automobile Service Station- Employees | P10: 1 | Q10: 13
A11: Pipe Radius | B11: =B9/12/2 -> 0.3333333333 | C11: Design Flow | D11: =D10*7.481 -> 343.972466 | E11: GAL/MIN | O11: Automobile Service Station- Vehicles | P11: 1 | Q11: 10
A12: Full Area (Afull = π*r²) | B12: =PI()*(B11^2) -> 0.3490658504 | O12: Country Club- Employees | P12: 1 | Q12: 13
A13: Wetted Perimeter (P = 2*π*r) | B13: =2*PI()*B11 -> 2.094395102 | C13: Model Flow | D13: =J8 ->  | E13: GAL/MIN | O13: Country Club- Members | P13: 1 | Q13: 25
A14: Hydraulic Radius (R = A/P) | B14: =B12/B13 -> 0.1666666667 | C14: Capacity | D14: =D13/D11 ->  | O14: Hospital - Bed | P14: 1 | Q14: 250
O15: Hospital - Employees | P15: 1 | Q15: 10
A16: MH 484-6537 to 484-5938 | B16: Type | C16: Units | D16: Capacity/unit | E16: gdp/cap | F16: gal/day | G16: Avg. Flow (gpm) | H16: Population | I16: Peaking Factor | J16: Calc. Peak (gpm) | O16: Industrial | P16: 1 | Q16: 20
A17: McAuley Place | B17: =#REF! ->  | C17: 188 | D17: =VLOOKUP(B17,#REF!,2,FALSE) ->  | E17: =VLOOKUP(B17,#REF!,3,FALSE) ->  | F17: =C17*E17*D17 ->  | G17: =F17/24/60 ->  | H17: =D17*C17 ->  | O17: Commercial | P17: 1 | Q17: 10
A18: Carry over from upstream | F18: =F8 ->  | G18: =G7 ->  | H18: =H7 -> 
A19: Sub total | C19: 0 | F19: =SUM(F17:F18) ->  | G19: =SUM(G17:G18) ->  | H19: =SUM(H17:H18) ->  | I19: =(18+SQRT(H19/1000))/(4+SQRT(H19/1000)) ->  | J19: =G19*I19 ->  | O19: Institutions other than hospitals- Employees | P19: 1 | Q19: 10
A20: Pipe Size (in) | B20: 8 | C20: Design Flow | D20: =(1.49/0.013)*B23*(B25^(2/3))*(B21^(1/2)) -> 0.7663246134 | E20: FT³/S | O20: Office | P20: 1 | Q20: 13
A21: Pipe Slope (S) (FT/FT) | B21: 0.004 | C21: Design Flow | D21: =D20*60 -> 45.9794768 | E21: FT³/MIN | O21: Picnic park w/flush toilets | P21: 1 | Q21: 5
A22: Pipe Radius | B22: =(B20/12)/2 -> 0.3333333333 | C22: Design Flow | D22: =D21*7.481 -> 343.972466 | E22: GAL/MIN | O22: Restaurant | P22: 1 | Q22: 8
A23: Full Area (Afull = π*r²) | B23: =PI()*B22^2 -> 0.3490658504 | O23: School | P23: 1 | Q23: 15
A24: Wetted Perimeter (P = 2*π*r) | B24: =2*PI()*B22 -> 2.094395102 | C24: Model Flow | D24: =J19 ->  | E24: GAL/MIN | O24: Shopping Center- Employees | P24: 1 | Q24: 10
A25: Hydraulic Radius (R = A/P) | B25: =B23/B24 -> 0.1666666667 | C25: Capacity | D25: =D24/D22 ->  | O25: Shopping Center- Guests | P25: 1 | Q25: 2
O26: Single Family Residential | P26: 3 | Q26: 100
A27: MH 484-5938 to 484-5937 | B27: Type | C27: Units | D27: Capacity/unit | E27: gdp/cap | F27: gal/day | G27: Avg. Flow (gpm) | H27: Population | I27: Peaking Factor | J27: Calc. Peak (gpm)
A28: I Street Modern Apartments | B28: Apartment | C28: 238 | D28: =VLOOKUP(B28,#REF!,2,FALSE) ->  | E28: =VLOOKUP(B28,#REF!,3,FALSE) ->  | F28: =E28*D28*C28 ->  | G28: =F28/24/60 ->  | H28: =C28*D28 ->  | O28: Future Land Use Assumptions
A29: Commercial Plaza | B29: =O17 -> Commercial | C29: 4 | D29: =VLOOKUP(B29,#REF!,2,FALSE) ->  | E29: =VLOOKUP(B29,#REF!,3,FALSE) ->  | F29: =C29*E29*D29 ->  | G29: =F29/24/60 ->  | H29: =D29*C29 ->  | O29: Future Zoning | P29: Units/Acre | Q29: Persons/Unit | R29: Gal/Person/Day
A30: Commercial Plaza | B30: =#REF! ->  | C30: 0 | D30: =VLOOKUP(B30,#REF!,2,FALSE) ->  | E30: =VLOOKUP(B30,#REF!,3,FALSE) ->  | F30: =E30*D30*C30 ->  | G30: =F30/24/60 ->  | H30: =C30*D30 -> 
A31: Carry over from upstream | F31: =F19 ->  | G31: =G19 ->  | H31: =H19 ->  | O31: R-1 | P31: 4 | Q31: 3 | R31: 100
A32: Sub total | C32: =C28 -> 238 | F32: =SUM(F28:F31) ->  | G32: =SUM(G28:G31) ->  | H32: =SUM(H28:H31) ->  | I32: =(18+SQRT(H32/1000))/(4+SQRT(H32/1000)) ->  | J32: =G32*I32 ->  | O32: R-2 | P32: 10 | Q32: 2 | R32: 100
A33: Pipe Size (in) | B33: 8 | C33: Design Flow | D33: =(1.49/0.013)*B36*(B38^(2/3))*(B34^(1/2)) -> 0.7663246134 | E33: FT³/S | O33: R-3 | P33: 22 | Q33: 3 | R33: 120
A34: Pipe Slope (S) (FT/FT) | B34: 0.004 | C34: Design Flow | D34: =D33*60 -> 45.9794768 | E34: FT³/MIN | O34: C-1 | P34: 4 | Q34: 1 | R34: 10
A35: Pipe Radius | B35: =(B33/12)/2 -> 0.3333333333 | C35: Design Flow | D35: =D34*7.481 -> 343.972466 | E35: GAL/MIN | O35: C-2 | P35: 14 | Q35: 1 | R35: 10
A36: Full Area (Afull = π*r²) | B36: =PI()*B35^2 -> 0.3490658504 | O36: C-3 | P36: 4 | Q36: 1 | R36: 10
A37: Wetted Perimeter (P = 2*π*r) | B37: =2*PI()*B35 -> 2.094395102 | C37: Model Flow | D37: =J32 ->  | E37: GAL/MIN | O37: I | P37: 1 | Q37: 1 | R37: 20
A38: Hydraulic Radius (R = A/P) | B38: =B36/B37 -> 0.1666666667 | C38: Capacity | D38: =D37/D35 -> 
A40: MH 484-5937 to 484-5935 | B40: Type | C40: Units | D40: Capacity/unit | E40: gdp/cap | F40: gal/day | G40: Avg. Flow (gpm) | H40: Population | I40: Peaking Factor | J40: Calc. Peak (gpm)
A41: - | B41: =#REF! ->  | C41: 0 | D41: =VLOOKUP(B41,#REF!,2,FALSE) ->  | E41: =VLOOKUP(B41,#REF!,3,FALSE) ->  | F41: =E41*D41*C41 ->  | G41: =F41/24/60 ->  | H41: =C41*D41 -> 
A42: Carry over from upstream | F42: =F32 ->  | G42: =G32 ->  | H42: =H32 -> 
A43: Sub total | C43: 0 | F43: =SUM(F41:F42) ->  | G43: =SUM(G41:G42) ->  | H43: =SUM(H41:H42) ->  | I43: =(18+SQRT(H43/1000))/(4+SQRT(H43/1000)) ->  | J43: =G43*I43 -> 
A44: Pipe Size (in) | B44: 8 | C44: Design Flow | D44: =(1.49/0.013)*B47*(B49^(2/3))*(B45^(1/2)) -> 0.7663246134 | E44: FT³/S
A45: Pipe Slope (S) (FT/FT) | B45: 0.004 | C45: Design Flow | D45: =D44*60 -> 45.9794768 | E45: FT³/MIN
A46: Pipe Radius | B46: =(B44/12)/2 -> 0.3333333333 | C46: Design Flow | D46: =D45*7.481 -> 343.972466 | E46: GAL/MIN
A47: Full Area (Afull = π*r²) | B47: =PI()*B46^2 -> 0.3490658504
A48: Wetted Perimeter (P = 2*π*r) | B48: =2*PI()*B46 -> 2.094395102 | C48: Model Flow | D48: =J43 ->  | E48: GAL/MIN
A49: Hydraulic Radius (R = A/P) | B49: =B47/B48 -> 0.1666666667 | C49: Capacity | D49: =D48/D46 -> 
A59: MH 484-5935 to 484-5934 | B59: Type | C59: Units | D59: Capacity/unit | E59: gdp/cap | F59: gal/day | G59: Avg. Flow (gpm) | H59: Population | I59: Peaking Factor | J59: Calc. Peak (gpm)
A60: - | B60: =#REF! ->  | C60: 0 | D60: =VLOOKUP(B60,#REF!,2,FALSE) ->  | E60: =VLOOKUP(B60,#REF!,3,FALSE) ->  | F60: =E60*D60*C60 ->  | G60: =F60/24/60 ->  | H60: =C60*D60 -> 
A61: Carry over from upstream | F61: =F43 ->  | G61: =G43 ->  | H61: =H43 -> 
A62: Sub total | C62: 0 | F62: =SUM(F60:F61) ->  | G62: =SUM(G60:G61) ->  | H62: =SUM(H60:H61) ->  | I62: =(18+SQRT(H62/1000))/(4+SQRT(H62/1000)) ->  | J62: =G62*I62 -> 
A63: Pipe Size (in) | B63: 8 | C63: Design Flow | D63: =(1.49/0.013)*B66*(B68^(2/3))*(B64^(1/2)) -> 0.7663246134 | E63: FT³/S
A64: Pipe Slope (S) (FT/FT) | B64: 0.004 | C64: Design Flow | D64: =D63*60 -> 45.9794768 | E64: FT³/MIN
A65: Pipe Radius | B65: =(B63/12)/2 -> 0.3333333333 | C65: Design Flow | D65: =D64*7.481 -> 343.972466 | E65: GAL/MIN
A66: Full Area (Afull = π*r²) | B66: =PI()*B65^2 -> 0.3490658504
A67: Wetted Perimeter (P = 2*π*r) | B67: =2*PI()*B65 -> 2.094395102 | C67: Model Flow | D67: =J62 ->  | E67: GAL/MIN
A68: Hydraulic Radius (R = A/P) | B68: =B66/B67 -> 0.1666666667 | C68: Capacity | D68: =D67/D65 -> 
A70: MH 484-5934 to 484-6843 | B70: Type | C70: Units | D70: Capacity/unit | E70: gdp/cap | F70: gal/day | G70: Avg. Flow (gpm) | H70: Population | I70: Peaking Factor | J70: Calc. Peak (gpm)
A71: Bentonville Community Center Tennis Court Bathroom | B71: Picnic park w/flush toilets | C71: 1 | D71: =VLOOKUP(B71,#REF!,2,FALSE) ->  | E71: =VLOOKUP(B71,#REF!,3,FALSE) ->  | F71: =C71*E71*D71 ->  | G71: =F71/24/60 ->  | H71: =D71*C71 -> 
A72: Carry over from upstream | F72: =F62 ->  | G72: =G62 ->  | H72: =H62 -> 
A73: Sub total | C73: =SUM(C71:C71) -> 1 | F73: =SUM(F71:F72) ->  | G73: =SUM(G71:G72) ->  | H73: =SUM(H71:H72) ->  | I73: =(18+SQRT(H73/1000))/(4+SQRT(H73/1000)) ->  | J73: =G73*I73 -> 
A74: Pipe Size (in) | B74: 8 | C74: Design Flow | D74: =(1.49/0.013)*B77*(B79^(2/3))*(B75^(1/2)) -> 0.7663246134 | E74: FT³/S
A75: Pipe Slope (S) (FT/FT) | B75: 0.004 | C75: Design Flow | D75: =D74*60 -> 45.9794768 | E75: FT³/MIN
A76: Pipe Radius | B76: =(B74/12)/2 -> 0.3333333333 | C76: Design Flow | D76: =D75*7.481 -> 343.972466 | E76: GAL/MIN
A77: Full Area (Afull = π*r²) | B77: =PI()*B76^2 -> 0.3490658504
A78: Wetted Perimeter (P = 2*π*r) | B78: =2*PI()*B76 -> 2.094395102 | C78: Model Flow | D78: =J73 ->  | E78: GAL/MIN
A79: Hydraulic Radius (R = A/P) | B79: =B77/B78 -> 0.1666666667 | C79: Capacity | D79: =D78/D76 -> 
A81: MH 484-6843 to 484-5933 | B81: Type | C81: Units | D81: Capacity/unit | E81: gdp/cap | F81: gal/day | G81: Avg. Flow (gpm) | H81: Population | I81: Peaking Factor | J81: Calc. Peak (gpm)
A82: Bentonville Community Center Main Building | B82: =#REF! ->  | C82: 40 | D82: =VLOOKUP(B82,#REF!,2,FALSE) ->  | E82: =VLOOKUP(B82,#REF!,3,FALSE) ->  | F82: =C82*E82*D82 ->  | G82: =F82/24/60 ->  | H82: =D82*C82 -> 
A83: Bentonville Community Center Main Building | B83: =#REF! ->  | C83: 100 | D83: =VLOOKUP(B83,#REF!,2,FALSE) ->  | E83: =VLOOKUP(B83,#REF!,3,FALSE) ->  | F83: =C83*E83*D83 ->  | G83: =F83/24/60 ->  | H83: =D83*C83 -> 
A84: Carry over from upstream | F84: =F73 ->  | G84: =G73 ->  | H84: =H73 -> 
A85: Sub total | C85: 0 | F85: =SUM(F82:F84) ->  | G85: =SUM(G82:G84) ->  | H85: =SUM(H82:H84) ->  | I85: =(18+SQRT(H85/1000))/(4+SQRT(H85/1000)) ->  | J85: =G85*I85 -> 
A86: Pipe Size (in) | B86: 8 | C86: Design Flow | D86: =(1.49/0.013)*B89*(B91^(2/3))*(B87^(1/2)) -> 0.7663246134 | E86: FT³/S
A87: Pipe Slope (S) (FT/FT) | B87: 0.004 | C87: Design Flow | D87: =D86*60 -> 45.9794768 | E87: FT³/MIN
A88: Pipe Radius | B88: =(B86/12)/2 -> 0.3333333333 | C88: Design Flow | D88: =D87*7.481 -> 343.972466 | E88: GAL/MIN
A89: Full Area (Afull = π*r²) | B89: =PI()*B88^2 -> 0.3490658504
A90: Wetted Perimeter (P = 2*π*r) | B90: =2*PI()*B88 -> 2.094395102 | C90: Model Flow | D90: =J85 ->  | E90: GAL/MIN
A91: Hydraulic Radius (R = A/P) | B91: =B89/B90 -> 0.1666666667 | C91: Capacity | D91: =D90/D88 -> 
A93: MH 484-5933 to 484-5932 | B93: Type | C93: Units | D93: Capacity/unit | E93: gdp/cap | F93: gal/day | G93: Avg. Flow (gpm) | H93: Population | I93: Peaking Factor | J93: Calc. Peak (gpm)
A94: - | B94: =#REF! ->  | C94: 0 | D94: =VLOOKUP(B94,#REF!,2,FALSE) ->  | E94: =VLOOKUP(B94,#REF!,3,FALSE) ->  | F94: =C94*E94*D94 ->  | G94: =F94/24/60 ->  | H94: =D94*C94 -> 
A95: Carry over from upstream | F95: =F85 ->  | G95: =G85 ->  | H95: =H85 -> 
A96: Sub total | C96: =SUM(C94:C94) -> 0 | F96: =SUM(F94:F95) ->  | G96: =SUM(G94:G95) ->  | H96: =SUM(H94:H95) ->  | I96: =(18+SQRT(H96/1000))/(4+SQRT(H96/1000)) ->  | J96: =G96*I96 -> 
A97: Pipe Size (in) | B97: 8 | C97: Design Flow | D97: =(1.49/0.013)*B100*(B102^(2/3))*(B98^(1/2)) -> 0.7663246134 | E97: FT³/S
A98: Pipe Slope (S) (FT/FT) | B98: 0.004 | C98: Design Flow | D98: =D97*60 -> 45.9794768 | E98: FT³/MIN
A99: Pipe Radius | B99: =(B97/12)/2 -> 0.3333333333 | C99: Design Flow | D99: =D98*7.481 -> 343.972466 | E99: GAL/MIN
A100: Full Area (Afull = π*r²) | B100: =PI()*B99^2 -> 0.3490658504
A101: Wetted Perimeter (P = 2*π*r) | B101: =2*PI()*B99 -> 2.094395102 | C101: Model Flow | D101: =J96 ->  | E101: GAL/MIN
A102: Hydraulic Radius (R = A/P) | B102: =B100/B101 -> 0.1666666667 | C102: Capacity | D102: =D101/D99 -> 
A104: MH 484-5932 to 484-6844 | B104: Type | C104: Units | D104: Capacity/unit | E104: gdp/cap | F104: gal/day | G104: Avg. Flow (gpm) | H104: Population | I104: Peaking Factor | J104: Calc. Peak (gpm)
A105: - | B105: =#REF! ->  | C105: 0 | D105: =VLOOKUP(B105,#REF!,2,FALSE) ->  | E105: =VLOOKUP(B105,#REF!,3,FALSE) ->  | F105: =C105*E105*D105 ->  | G105: =F105/24/60 ->  | H105: =D105*C105 -> 
A107: Carry over from upstream | F107: =F96 ->  | G107: =G96 ->  | H107: =H96 -> 
A108: Sub total | C108: 0 | F108: =SUM(F105:F107) ->  | G108: =SUM(G105:G107) ->  | H108: =SUM(H105:H107) ->  | I108: =(18+SQRT(H108/1000))/(4+SQRT(H108/1000)) ->  | J108: =G108*I108 -> 
A109: Pipe Size (in) | B109: 8 | C109: Design Flow | D109: =(1.49/0.013)*B112*(B114^(2/3))*(B110^(1/2)) -> 0.7663246134 | E109: FT³/S
A110: Pipe Slope (S) (FT/FT) | B110: 0.004 | C110: Design Flow | D110: =D109*60 -> 45.9794768 | E110: FT³/MIN
A111: Pipe Radius | B111: =(B109/12)/2 -> 0.3333333333 | C111: Design Flow | D111: =D110*7.481 -> 343.972466 | E111: GAL/MIN
A112: Full Area (Afull = π*r²) | B112: =PI()*B111^2 -> 0.3490658504
A113: Wetted Perimeter (P = 2*π*r) | B113: =2*PI()*B111 -> 2.094395102 | C113: Model Flow | D113: =J108 ->  | E113: GAL/MIN
A114: Hydraulic Radius (R = A/P) | B114: =B112/B113 -> 0.1666666667 | C114: Capacity | D114: =D113/D111 -> 
A116: MH 484-6844 to 484-1091 | B116: Type | C116: Units | D116: Capacity/unit | E116: gdp/cap | F116: gal/day | G116: Avg. Flow (gpm) | H116: Population | I116: Peaking Factor | J116: Calc. Peak (gpm)
A117: Citizen Park | B117: =#REF! ->  | C117: 1 | D117: =VLOOKUP(B117,#REF!,2,FALSE) ->  | E117: =VLOOKUP(B117,#REF!,3,FALSE) ->  | F117: =C117*E117*D117 ->  | G117: =F117/24/60 ->  | H117: =D117*C117 -> 
A121: Carry over from upstream | F121: =F108 ->  | G121: =G108 ->  | H121: =H108 -> 
A122: Sub total | C122: 0 | F122: =SUM(F117:F121) ->  | G122: =SUM(G117:G121) ->  | H122: =SUM(H117:H121) ->  | I122: =(18+SQRT(H122/1000))/(4+SQRT(H122/1000)) ->  | J122: =G122*I122 -> 
A123: Pipe Size (in) | B123: 8 | C123: Design Flow | D123: =(1.49/0.013)*B126*(B128^(2/3))*(B124^(1/2)) -> 0.7663246134 | E123: FT³/S
A124: Pipe Slope (S) (FT/FT) | B124: 0.004 | C124: Design Flow | D124: =D123*60 -> 45.9794768 | E124: FT³/MIN
A125: Pipe Radius | B125: =(B123/12)/2 -> 0.3333333333 | C125: Design Flow | D125: =D124*7.481 -> 343.972466 | E125: GAL/MIN
A126: Full Area (Afull = π*r²) | B126: =PI()*B125^2 -> 0.3490658504
A127: Wetted Perimeter (P = 2*π*r) | B127: =2*PI()*B125 -> 2.094395102 | C127: Model Flow | D127: =J122 ->  | E127: GAL/MIN
A128: Hydraulic Radius (R = A/P) | B128: =B126/B127 -> 0.1666666667 | C128: Capacity | D128: =D127/D125 -> 
A130: MH 484-1091 to 484-1101 | B130: Type | C130: Units | D130: Capacity/unit | E130: gdp/cap | F130: gal/day | G130: Avg. Flow (gpm) | H130: Population | I130: Peaking Factor | J130: Calc. Peak (gpm)
A131: Oxford Ridge Subdivision | B131: =#REF! ->  | C131: 1 | E131: =VLOOKUP(B131,#REF!,3,FALSE) ->  | F131: =C131*E131*D131 ->  | G131: =F131/24/60 ->  | H131: =D131*C131 -> 
B132: Country Club- Members | C132: 0 | D132: 1 | E132: 25 | F132: =C132*E132*D132 -> 0 | G132: =F132/24/60 -> 0 | H132: =D132*C132 -> 0
B133: Country Club- Employees | C133: 0 | D133: 1 | E133: 13 | F133: =C133*E133*D133 -> 0 | G133: =F133/24/60 -> 0 | H133: =D133*C133 -> 0
B134: assembly hall | C134: 0 | D134: 1 | E134: 4 | F134: =C134*E134*D134 -> 0 | G134: =F134/24/60 -> 0 | H134: =D134*C134 -> 0
B135: Single Family Residential | C135: 0 | D135: =VLOOKUP(B135,#REF!,2,FALSE) ->  | E135: =VLOOKUP(B135,#REF!,3,FALSE) ->  | F135: =C135*E135*D135 ->  | G135: =F135/24/60 ->  | H135: =D135*C135 -> 
A136: Carry over from upstream | F136: =F122 ->  | G136: =G122 ->  | H136: =H122 -> 
A137: Sub total | C137: 0 | F137: =SUM(F131:F136) ->  | G137: =SUM(G131:G136) ->  | H137: =SUM(H131:H136) ->  | I137: =(18+SQRT(H137/1000))/(4+SQRT(H137/1000)) ->  | J137: =G137*I137 -> 
A138: Pipe Size (in) | B138: 8 | C138: Design Flow | D138: =(1.49/0.013)*B141*(B143^(2/3))*(B139^(1/2)) -> 0.7663246134 | E138: FT³/S
A139: Pipe Slope (S) (FT/FT) | B139: 0.004 | C139: Design Flow | D139: =D138*60 -> 45.9794768 | E139: FT³/MIN
A140: Pipe Radius | B140: =(B138/12)/2 -> 0.3333333333 | C140: Design Flow | D140: =D139*7.481 -> 343.972466 | E140: GAL/MIN
A141: Full Area (Afull = π*r²) | B141: =PI()*B140^2 -> 0.3490658504
A142: Wetted Perimeter (P = 2*π*r) | B142: =2*PI()*B140 -> 2.094395102 | C142: Model Flow | D142: =J137 ->  | E142: GAL/MIN
A143: Hydraulic Radius (R = A/P) | B143: =B141/B142 -> 0.1666666667 | C143: Capacity | D143: =D142/D140 -> 
A145: MH 484-1101 to 484-1102 | B145: Type | C145: Units | D145: Capacity/unit | E145: gdp/cap | F145: gal/day | G145: Avg. Flow (gpm) | H145: Population | I145: Peaking Factor | J145: Calc. Peak (gpm)
A146: - | B146: Single Family Residential | C146: 0 | D146: =VLOOKUP(B146,#REF!,2,FALSE) ->  | E146: =VLOOKUP(B146,#REF!,3,FALSE) ->  | F146: =C146*E146*D146 ->  | G146: =F146/24/60 ->  | H146: =D146*C146 -> 
A147: The Buttered Biscuit at I Steet | B147: =#REF! ->  | C147: 0 | D147: =VLOOKUP(B147,#REF!,2,FALSE) ->  | E147: =VLOOKUP(B147,#REF!,3,FALSE) ->  | F147: =C147*E147*D147 ->  | G147: =F147/24/60 ->  | H147: =D147*C147 -> 
A148: Flagstone Church of Christ | B148: =#REF! ->  | C148: 0 | D148: =VLOOKUP(B148,#REF!,2,FALSE) ->  | E148: =VLOOKUP(B148,#REF!,3,FALSE) ->  | F148: =C148*E148*D148 ->  | G148: =F148/24/60 ->  | H148: =D148*C148 -> 
A149: Scooters Coffee | B149: =#REF! ->  | C149: 0 | D149: =VLOOKUP(B149,#REF!,2,FALSE) ->  | E149: =VLOOKUP(B149,#REF!,3,FALSE) ->  | F149: =C149*E149*D149 ->  | G149: =F149/24/60 ->  | H149: =D149*C149 -> 
A150: Bentonville Community Center Soccer Pitch Bathroom | B150: =#REF! ->  | C150: 0 | D150: =VLOOKUP(B150,#REF!,2,FALSE) ->  | E150: =VLOOKUP(B150,#REF!,3,FALSE) ->  | F150: =C150*E150*D150 ->  | G150: =F150/24/60 ->  | H150: =D150*C150 -> 
A151: Carry over from upstream | F151: =F137 ->  | G151: =G137 ->  | H151: =H137 -> 
A152: Sub total | C152: =C96 -> 0 | F152: =SUM(F146:F151) ->  | G152: =SUM(G146:G151) ->  | H152: =SUM(H146:H151) ->  | I152: =(18+SQRT(H152/1000))/(4+SQRT(H152/1000)) ->  | J152: =G152*I152 -> 
A153: Pipe Size (in) | B153: 8 | C153: Design Flow | D153: =(1.49/0.013)*B156*(B158^(2/3))*(B154^(1/2)) -> 0.7663246134 | E153: FT³/S
A154: Pipe Slope (S) (FT/FT) | B154: 0.004 | C154: Design Flow | D154: =D153*60 -> 45.9794768 | E154: FT³/MIN
A155: Pipe Radius | B155: =(B153/12)/2 -> 0.3333333333 | C155: Design Flow | D155: =D154*7.481 -> 343.972466 | E155: GAL/MIN
A156: Full Area (Afull = π*r²) | B156: =PI()*B155^2 -> 0.3490658504
A157: Wetted Perimeter (P = 2*π*r) | B157: =2*PI()*B155 -> 2.094395102 | C157: Model Flow | D157: =J152 ->  | E157: GAL/MIN
A158: Hydraulic Radius (R = A/P) | B158: =B156/B157 -> 0.1666666667 | C158: Capacity | D158: =D157/D155 -> 
A160: MH 484-1102 to 484-1108 | B160: Type | C160: Units | D160: Capacity/unit | E160: gdp/cap | F160: gal/day | G160: Avg. Flow (gpm) | H160: Population | I160: Peaking Factor | J160: Calc. Peak (gpm)
A161: Oxford Ridge Subdivision | B161: Single Family Residential | C161: =45+65 -> 110 | D161: =VLOOKUP(B161,#REF!,2,FALSE) ->  | E161: =VLOOKUP(B161,#REF!,3,FALSE) ->  | F161: =C161*E161*D161 ->  | G161: =F161/24/60 ->  | H161: =D161*C161 -> 
A162: The Buttered Biscuit at I Steet | B162: =#REF! ->  | C162: 1 | D162: =VLOOKUP(B162,#REF!,2,FALSE) ->  | E162: =VLOOKUP(B162,#REF!,3,FALSE) ->  | F162: =C162*E162*D162 ->  | G162: =F162/24/60 ->  | H162: =D162*C162 -> 
A163: Flagstone Church of Christ | B163: =#REF! ->  | C163: 1 | D163: =VLOOKUP(B163,#REF!,2,FALSE) ->  | E163: =VLOOKUP(B163,#REF!,3,FALSE) ->  | F163: =C163*E163*D163 ->  | G163: =F163/24/60 ->  | H163: =D163*C163 -> 
A164: Bentonville Community Center Soccer Pitch Bathroom | B164: =#REF! ->  | C164: 1 | D164: =VLOOKUP(B164,#REF!,2,FALSE) ->  | E164: =VLOOKUP(B164,#REF!,3,FALSE) ->  | F164: =C164*E164*D164 ->  | G164: =F164/24/60 ->  | H164: =D164*C164 -> 
A165: Scooters Coffee | B165: =#REF! ->  | C165: 1 | D165: =VLOOKUP(B165,#REF!,2,FALSE) ->  | E165: =VLOOKUP(B165,#REF!,3,FALSE) ->  | F165: =C165*E165*D165 ->  | G165: =F165/24/60 ->  | H165: =D165*C165 -> 
A166: Carry over from upstream | F166: =F152 ->  | G166: =G152 ->  | H166: =H152 -> 
A167: Sub total | F167: =SUM(F161:F166) ->  | G167: =SUM(G161:G166) ->  | H167: =SUM(H161:H166) ->  | I167: =(18+SQRT(H167/1000))/(4+SQRT(H167/1000)) ->  | J167: =G167*I167 -> 
A168: Pipe Size (in) | B168: 8 | C168: Design Flow | D168: =(1.49/0.013)*B171*(B173^(2/3))*(B169^(1/2)) -> 0.7663246134 | E168: FT³/S
A169: Pipe Slope (S) (FT/FT) | B169: 0.004 | C169: Design Flow | D169: =D168*60 -> 45.9794768 | E169: FT³/MIN
A170: Pipe Radius | B170: =(B168/12)/2 -> 0.3333333333 | C170: Design Flow | D170: =D169*7.481 -> 343.972466 | E170: GAL/MIN
A171: Full Area (Afull = π*r²) | B171: =PI()*B170^2 -> 0.3490658504
A172: Wetted Perimeter (P = 2*π*r) | B172: =2*PI()*B170 -> 2.094395102 | C172: Model Flow | D172: =J167 ->  | E172: GAL/MIN
A173: Hydraulic Radius (R = A/P) | B173: =B171/B172 -> 0.1666666667 | C173: Capacity | D173: =D172/D170 -> 
A181: MH 484-1088 to 484-1075 | B181: Type | C181: Units | D181: Capacity/unit | E181: gdp/cap | F181: gal/day | G181: Avg. Flow (gpm) | H181: Population | I181: Peaking Factor | J181: Calc. Peak (gpm)
A182: Oxford Ridge Subdivision | B182: Single Family Residential | C182: 47 | D182: =VLOOKUP(B182,#REF!,2,FALSE) ->  | E182: =VLOOKUP(B182,#REF!,3,FALSE) ->  | F182: =C182*E182*D182 ->  | G182: =F182/24/60 ->  | H182: =D182*C182 -> 
A183: Commercial Plaza | B183: =#REF! ->  | C183: 4 | D183: =VLOOKUP(B183,#REF!,2,FALSE) ->  | E183: =VLOOKUP(B183,#REF!,3,FALSE) ->  | F183: =C183*E183*D183 ->  | G183: =F183/24/60 ->  | H183: =D183*C183 -> 
A184: Carry over from upstream | F184: =F167 ->  | G184: =G167 ->  | H184: =H167 -> 
A185: Sub total | C185: 0 | F185: =SUM(F182:F184) ->  | G185: =SUM(G182:G184) ->  | H185: =SUM(H182:H184) ->  | I185: =(18+SQRT(H185/1000))/(4+SQRT(H185/1000)) ->  | J185: =G185*I185 -> 
A186: Pipe Size (in) | B186: 8 | C186: Design Flow | D186: =(1.49/0.013)*B189*(B191^(2/3))*(B187^(1/2)) -> 0.7663246134 | E186: FT³/S
A187: Pipe Slope (S) (FT/FT) | B187: 0.004 | C187: Design Flow | D187: =D186*60 -> 45.9794768 | E187: FT³/MIN
A188: Pipe Radius | B188: =(B186/12)/2 -> 0.3333333333 | C188: Design Flow | D188: =D187*7.481 -> 343.972466 | E188: GAL/MIN
A189: Full Area (Afull = π*r²) | B189: =PI()*B188^2 -> 0.3490658504
A190: Wetted Perimeter (P = 2*π*r) | B190: =2*PI()*B188 -> 2.094395102 | C190: Model Flow | D190: =J185 ->  | E190: GAL/MIN
A191: Hydraulic Radius (R = A/P) | B191: =B189/B190 -> 0.1666666667 | C191: Capacity | D191: =D190/D188 -> 
A193: MH 484-1075 to 484-1115 | B193: Type | C193: Units | D193: Capacity/unit | E193: gdp/cap | F193: gal/day | G193: Avg. Flow (gpm) | H193: Population | I193: Peaking Factor | J193: Calc. Peak (gpm)
A194: Oxford Ridge Subdivision | B194: Single Family Residential | C194: 46 | D194: =VLOOKUP(B194,#REF!,2,FALSE) ->  | E194: =VLOOKUP(B194,#REF!,3,FALSE) ->  | F194: =C194*E194*D194 ->  | G194: =F194/24/60 ->  | H194: =D194*C194 -> 
A195: Carry over from upstream | F195: =F185 ->  | G195: =G185 ->  | H195: =H185 -> 
A196: Sub total | C196: 0 | F196: =SUM(F194:F195) ->  | G196: =SUM(G194:G195) ->  | H196: =SUM(H194:H195) ->  | I196: =(18+SQRT(H196/1000))/(4+SQRT(H196/1000)) ->  | J196: =G196*I196 -> 
A197: Pipe Size (in) | B197: 8 | C197: Design Flow | D197: =(1.49/0.013)*B200*(B202^(2/3))*(B198^(1/2)) -> 0.7663246134 | E197: FT³/S
A198: Pipe Slope (S) (FT/FT) | B198: 0.004 | C198: Design Flow | D198: =D197*60 -> 45.9794768 | E198: FT³/MIN
A199: Pipe Radius | B199: =(B197/12)/2 -> 0.3333333333 | C199: Design Flow | D199: =D198*7.481 -> 343.972466 | E199: GAL/MIN
A200: Full Area (Afull = π*r²) | B200: =PI()*B199^2 -> 0.3490658504
A201: Wetted Perimeter (P = 2*π*r) | B201: =2*PI()*B199 -> 2.094395102 | C201: Model Flow | D201: =J196 ->  | E201: GAL/MIN
A202: Hydraulic Radius (R = A/P) | B202: =B200/B201 -> 0.1666666667 | C202: Capacity | D202: =D201/D199 -> 
A204: MH 484-1115 to 484-1365 | B204: Type | C204: Units | D204: Capacity/unit | E204: gdp/cap | F204: gal/day | G204: Avg. Flow (gpm) | H204: Population | I204: Peaking Factor | J204: Calc. Peak (gpm)
A205: Oxford Ridge Subdivision | B205: Single Family Residential | C205: 1 | D205: =VLOOKUP(B205,#REF!,2,FALSE) ->  | E205: =VLOOKUP(B205,#REF!,3,FALSE) ->  | F205: =C205*E205*D205 ->  | G205: =F205/24/60 ->  | H205: =D205*C205 -> 
A206: Carry over from upstream | F206: =F196 ->  | G206: =G196 ->  | H206: =H196 -> 
A207: Sub total | C207: 0 | F207: =SUM(F205:F206) ->  | G207: =SUM(G205:G206) ->  | H207: =SUM(H205:H206) ->  | I207: =(18+SQRT(H207/1000))/(4+SQRT(H207/1000)) ->  | J207: =G207*I207 -> 
A208: Pipe Size (in) | B208: 8 | C208: Design Flow | D208: =(1.49/0.013)*B211*(B213^(2/3))*(B209^(1/2)) -> 0.7663246134 | E208: FT³/S
A209: Pipe Slope (S) (FT/FT) | B209: 0.004 | C209: Design Flow | D209: =D208*60 -> 45.9794768 | E209: FT³/MIN
A210: Pipe Radius | B210: =(B208/12)/2 -> 0.3333333333 | C210: Design Flow | D210: =D209*7.481 -> 343.972466 | E210: GAL/MIN
A211: Full Area (Afull = π*r²) | B211: =PI()*B210^2 -> 0.3490658504
A212: Wetted Perimeter (P = 2*π*r) | B212: =2*PI()*B210 -> 2.094395102 | C212: Model Flow | D212: =J207 ->  | E212: GAL/MIN
A213: Hydraulic Radius (R = A/P) | B213: =B211/B212 -> 0.1666666667 | C213: Capacity | D213: =D212/D210 -> 
A215: MH 484-1365 to 484-1366 | B215: Type | C215: Units | D215: Capacity/unit | E215: gdp/cap | F215: gal/day | G215: Avg. Flow (gpm) | H215: Population | I215: Peaking Factor | J215: Calc. Peak (gpm)
A216: Brightwood | B216: Single Family Residential | C216: 17 | D216: =VLOOKUP(B216,#REF!,2,FALSE) ->  | E216: =VLOOKUP(B216,#REF!,3,FALSE) ->  | F216: =C216*E216*D216 ->  | G216: =F216/24/60 ->  | H216: =D216*C216 -> 
A217: Carry over from upstream | F217: =F207 ->  | G217: =G207 ->  | H217: =H207 -> 
A218: Sub total | C218: 0 | F218: =SUM(F216:F217) ->  | G218: =SUM(G216:G217) ->  | H218: =SUM(H216:H217) ->  | I218: =(18+SQRT(H218/1000))/(4+SQRT(H218/1000)) ->  | J218: =G218*I218 -> 
A219: Pipe Size (in) | B219: 8 | C219: Design Flow | D219: =(1.49/0.013)*B222*(B224^(2/3))*(B220^(1/2)) -> 0.7663246134 | E219: FT³/S
A220: Pipe Slope (S) (FT/FT) | B220: 0.004 | C220: Design Flow | D220: =D219*60 -> 45.9794768 | E220: FT³/MIN
A221: Pipe Radius | B221: =(B219/12)/2 -> 0.3333333333 | C221: Design Flow | D221: =D220*7.481 -> 343.972466 | E221: GAL/MIN
A222: Full Area (Afull = π*r²) | B222: =PI()*B221^2 -> 0.3490658504
A223: Wetted Perimeter (P = 2*π*r) | B223: =2*PI()*B221 -> 2.094395102 | C223: Model Flow | D223: =J218 ->  | E223: GAL/MIN
A224: Hydraulic Radius (R = A/P) | B224: =B222/B223 -> 0.1666666667 | C224: Capacity | D224: =D223/D221 -> 
A226: MH 484-1366 to 484-1345 | B226: Type | C226: Units | D226: Capacity/unit | E226: gdp/cap | F226: gal/day | G226: Avg. Flow (gpm) | H226: Population | I226: Peaking Factor | J226: Calc. Peak (gpm)
A227: Brightwood | B227: Single Family Residential | C227: 9 | D227: =VLOOKUP(B227,#REF!,2,FALSE) ->  | E227: =VLOOKUP(B227,#REF!,3,FALSE) ->  | F227: =C227*E227*D227 ->  | G227: =F227/24/60 ->  | H227: =D227*C227 -> 
A228: Carry over from upstream | F228: =F218 ->  | G228: =G218 ->  | H228: =H218 -> 
A229: Sub total | C229: 0 | F229: =SUM(F227:F228) ->  | G229: =SUM(G227:G228) ->  | H229: =SUM(H227:H228) ->  | I229: =(18+SQRT(H229/1000))/(4+SQRT(H229/1000)) ->  | J229: =G229*I229 -> 
A230: Pipe Size (in) | B230: 8 | C230: Design Flow | D230: =(1.49/0.013)*B233*(B235^(2/3))*(B231^(1/2)) -> 0.7663246134 | E230: FT³/S
A231: Pipe Slope (S) (FT/FT) | B231: 0.004 | C231: Design Flow | D231: =D230*60 -> 45.9794768 | E231: FT³/MIN
A232: Pipe Radius | B232: =(B230/12)/2 -> 0.3333333333 | C232: Design Flow | D232: =D231*7.481 -> 343.972466 | E232: GAL/MIN
A233: Full Area (Afull = π*r²) | B233: =PI()*B232^2 -> 0.3490658504
... 74 more rows

Sheet Bishop North Proposed (hidden)
A1: Bishop North Sewer Study
A2: Manhhole 8505 to 12040 - Proposed Flows
A3: Crafton Tull Job # 21112800
A4: 2023-05-24
A5: MH 8505 to 8503 | B5: Type | C5: Units | D5: Capacity/unit | E5: gdp/cap | F5: gal/day | G5: Avg. Flow (gpm) | H5: Population | I5: Peaking Factor | J5: Lift Station Flow (gpm) | K5: Calc. Peak (gpm)
A6: Bishop North Gravity | B6: Single Family Residential | C6: 47 | D6: =VLOOKUP(B6,#REF!,2,FALSE) ->  | E6: =VLOOKUP(B6,#REF!,3,FALSE) ->  | F6: =C6*E6*D6 ->  | G6: =F6/24/60 ->  | H6: =D6*C6 ->  | I6: =(18+SQRT(H6/1000))/(4+SQRT(H6/1000)) ->  | K6: =G6*I6 -> 
A7: Sub total from existing | B7: Single Family Residential - Lift Station (93 lots) | F7: =F6 ->  | G7: =SUM(G6:G6) ->  | H7: =SUM(H6:H6) ->  | I7: =(18+SQRT(H7/1000))/(4+SQRT(H7/1000)) ->  | J7: 99 | K7: =SUM(K6:K6)+J7 -> 
A8: Pipe Size (in) | B8: 8 | C8: Design Flow | D8: =(1.49/0.013)*B11*(B13^(2/3))*(B9^(1/2)) -> 0.9991650525 | E8: FT³/S
A9: Pipe Slope (S) (FT/FT) | B9: 0.0068 | C9: Design Flow | D9: =D8*60 -> 59.94990315 | E9: FT³/MIN
A10: Pipe Radius | B10: =B8/12/2 -> 0.3333333333 | C10: Design Flow | D10: =D9*7.481 -> 448.4852255 | E10: GAL/MIN
A11: Full Area (Afull = π*r²) | B11: =PI()*(B10^2) -> 0.3490658504
A12: Wetted Perimeter (P = 2*π*r) | B12: =2*PI()*B10 -> 2.094395102 | C12: Model Flow | D12: =K7 ->  | E12: GAL/MIN
A13: Hydraulic Radius (R = A/P) | B13: =B11/B12 -> 0.1666666667 | C13: Capacity | D13: =D12/D10 -> 
A15: MH 8503 to 8502 | B15: Type | C15: Units | D15: Capacity/unit | E15: gdp/cap | F15: gal/day | G15: Avg. Flow (gpm) | H15: Population | I15: Peaking Factor | J15: Lift Station Flow (gpm) | K15: Calc. Peak (gpm)
A16: Summer Meadows PH 1 | B16: Single Family Residential | C16: 6 | D16: =VLOOKUP(B16,#REF!,2,FALSE) ->  | E16: =VLOOKUP(B16,#REF!,3,FALSE) ->  | F16: =C16*E16*D16 ->  | G16: =F16/24/60 ->  | H16: =D16*C16 -> 
A17: Carry over from upstream | F17: =F7 ->  | G17: =G7 ->  | H17: =H7 -> 
A18: Sub total | C18: 0 | F18: =SUM(F16:F17) ->  | G18: =SUM(G16:G17) ->  | H18: =SUM(H16:H17) ->  | I18: =(18+SQRT(H18/1000))/(4+SQRT(H18/1000)) ->  | J18: =J7 -> 99 | K18: =G18*I18+J18 -> 
A19: Pipe Size (in) | B19: 8 | C19: Design Flow | D19: =(1.49/0.013)*B22*(B24^(2/3))*(B20^(1/2)) -> 2.576036407 | E19: FT³/S
A20: Pipe Slope (S) (FT/FT) | B20: 0.0452 | C20: Design Flow | D20: =D19*60 -> 154.5621844 | E20: FT³/MIN
A21: Pipe Radius | B21: =(B19/12)/2 -> 0.3333333333 | C21: Design Flow | D21: =D20*7.481 -> 1156.279701 | E21: GAL/MIN
A22: Full Area (Afull = π*r²) | B22: =PI()*B21^2 -> 0.3490658504
A23: Wetted Perimeter (P = 2*π*r) | B23: =2*PI()*B21 -> 2.094395102 | C23: Model Flow | D23: =K18 ->  | E23: GAL/MIN
A24: Hydraulic Radius (R = A/P) | B24: =B22/B23 -> 0.1666666667 | C24: Capacity | D24: =D23/D21 -> 
A26: MH 8502 to 8500 | B26: Type | C26: Units | D26: Capacity/unit | E26: gdp/cap | F26: gal/day | G26: Avg. Flow (gpm) | H26: Population | I26: Peaking Factor | J26: Lift Station Flow (gpm) | K26: Calc. Peak (gpm)
A27: Summer Meadows PH 2 | B27: Single Family Residential | C27: 6 | D27: =VLOOKUP(B27,#REF!,2,FALSE) ->  | E27: =VLOOKUP(B27,#REF!,3,FALSE) ->  | F27: =E27*D27*C27 ->  | G27: =F27/24/60 ->  | H27: =C27*D27 -> 
A28: Carry over from upstream | F28: =F18 ->  | G28: =G18 ->  | H28: =H18 -> 
A29: Sub total | C29: =C27 -> 6 | F29: =SUM(F27:F28) ->  | G29: =SUM(G27:G28) ->  | H29: =SUM(H27:H28) ->  | I29: =(18+SQRT(H29/1000))/(4+SQRT(H29/1000)) ->  | J29: =J18 -> 99 | K29: =G29*I29+J29 -> 
A30: Pipe Size (in) | B30: 8 | C30: Design Flow | D30: =(1.49/0.013)*B33*(B35^(2/3))*(B31^(1/2)) -> 0.9917910399 | E30: FT³/S
A31: Pipe Slope (S) (FT/FT) | B31: 0.0067 | C31: Design Flow | D31: =D30*60 -> 59.5074624 | E31: FT³/MIN
A32: Pipe Radius | B32: =(B30/12)/2 -> 0.3333333333 | C32: Design Flow | D32: =D31*7.481 -> 445.1753262 | E32: GAL/MIN
A33: Full Area (Afull = π*r²) | B33: =PI()*B32^2 -> 0.3490658504
A34: Wetted Perimeter (P = 2*π*r) | B34: =2*PI()*B32 -> 2.094395102 | C34: Model Flow | D34: =K29 ->  | E34: GAL/MIN
A35: Hydraulic Radius (R = A/P) | B35: =B33/B34 -> 0.1666666667 | C35: Capacity | D35: =D34/D32 -> 
A37: MH 8500 to 8499 | B37: Type | C37: Units | D37: Capacity/unit | E37: gdp/cap | F37: gal/day | G37: Avg. Flow (gpm) | H37: Population | I37: Peaking Factor | J37: Lift Station Flow (gpm) | K37: Calc. Peak (gpm)
A38: Summer Meadows Phase 1 | B38: Single Family Residential | C38: 6 | D38: =VLOOKUP(B38,#REF!,2,FALSE) ->  | E38: =VLOOKUP(B38,#REF!,3,FALSE) ->  | F38: =E38*D38*C38 ->  | G38: =F38/24/60 ->  | H38: =C38*D38 -> 
A39: Carry over from upstream | F39: =F29 ->  | G39: =G29 ->  | H39: =H29 -> 
A40: Sub total | C40: 0 | F40: =SUM(F38:F39) ->  | G40: =SUM(G38:G39) ->  | H40: =SUM(H38:H39) ->  | I40: =(18+SQRT(H40/1000))/(4+SQRT(H40/1000)) ->  | J40: =J29 -> 99 | K40: =G40*I40+J40 -> 
A41: Pipe Size (in) | B41: 8 | C41: Design Flow | D41: =(1.49/0.013)*B44*(B46^(2/3))*(B42^(1/2)) -> 2.211082238 | E41: FT³/S
A42: Pipe Slope (S) (FT/FT) | B42: 0.0333 | C42: Design Flow | D42: =D41*60 -> 132.6649343 | E42: FT³/MIN
A43: Pipe Radius | B43: =(B41/12)/2 -> 0.3333333333 | C43: Design Flow | D43: =D42*7.481 -> 992.4663734 | E43: GAL/MIN
A44: Full Area (Afull = π*r²) | B44: =PI()*B43^2 -> 0.3490658504
A45: Wetted Perimeter (P = 2*π*r) | B45: =2*PI()*B43 -> 2.094395102 | C45: Model Flow | D45: =K40 ->  | E45: GAL/MIN
A46: Hydraulic Radius (R = A/P) | B46: =B44/B45 -> 0.1666666667 | C46: Capacity | D46: =D45/D43 -> 
A55: MH 8499 to 8493 | B55: Type | C55: Units | D55: Capacity/unit | E55: gdp/cap | F55: gal/day | G55: Avg. Flow (gpm) | H55: Population | I55: Peaking Factor | J55: Lift Station Flow (gpm) | K55: Calc. Peak (gpm)
A56: Summer Meadows Phase 2 | B56: Single Family Residential | C56: 3 | D56: =VLOOKUP(B56,#REF!,2,FALSE) ->  | E56: =VLOOKUP(B56,#REF!,3,FALSE) ->  | F56: =E56*D56*C56 ->  | G56: =F56/24/60 ->  | H56: =C56*D56 -> 
A57: Carry over from upstream | F57: =F40 ->  | G57: =G40 ->  | H57: =H40 -> 
A58: Sub total | C58: 0 | F58: =SUM(F56:F57) ->  | G58: =SUM(G56:G57) ->  | H58: =SUM(H56:H57) ->  | I58: =(18+SQRT(H58/1000))/(4+SQRT(H58/1000)) ->  | J58: =J40 -> 99 | K58: =G58*I58+J58 -> 
A59: Pipe Size (in) | B59: 8 | C59: Design Flow | D59: =(1.49/0.013)*B62*(B64^(2/3))*(B60^(1/2)) -> 2.483175555 | E59: FT³/S
A60: Pipe Slope (S) (FT/FT) | B60: 0.042 | C60: Design Flow | D60: =D59*60 -> 148.9905333 | E60: FT³/MIN
A61: Pipe Radius | B61: =(B59/12)/2 -> 0.3333333333 | C61: Design Flow | D61: =D60*7.481 -> 1114.59818 | E61: GAL/MIN
A62: Full Area (Afull = π*r²) | B62: =PI()*B61^2 -> 0.3490658504
A63: Wetted Perimeter (P = 2*π*r) | B63: =2*PI()*B61 -> 2.094395102 | C63: Model Flow | D63: =K58 ->  | E63: GAL/MIN
A64: Hydraulic Radius (R = A/P) | B64: =B62/B63 -> 0.1666666667 | C64: Capacity | D64: =D63/D61 -> 
A66: MH 8493 to MH 8490 | B66: Type | C66: Units | D66: Capacity/unit | E66: gdp/cap | F66: gal/day | G66: Avg. Flow (gpm) | H66: Population | I66: Peaking Factor | J66: Lift Station Flow (gpm) | K66: Calc. Peak (gpm)
A67: Multiple Subdivisions | B67: Single Family Residential | C67: 138 | D67: =VLOOKUP(B67,#REF!,2,FALSE) ->  | E67: =VLOOKUP(B67,#REF!,3,FALSE) ->  | F67: =C67*E67*D67 ->  | G67: =F67/24/60 ->  | H67: =D67*C67 -> 
A68: Carry over from upstream | F68: =F58 ->  | G68: =G58 ->  | H68: =H58 -> 
A69: Sub total | C69: =SUM(C67:C67) -> 138 | F69: =SUM(F67:F68) ->  | G69: =SUM(G67:G68) ->  | H69: =SUM(H67:H68) ->  | I69: =(18+SQRT(H69/1000))/(4+SQRT(H69/1000)) ->  | J69: =J58 -> 99 | K69: =G69*I69+J69 -> 
A70: Pipe Size (in) | B70: 10 | C70: Design Flow | D70: =(1.49/0.013)*B73*(B75^(2/3))*(B71^(1/2)) -> 1.423751274 | E70: FT³/S
A71: Pipe Slope (S) (FT/FT) | B71: 0.0042 | C71: Design Flow | D71: =D70*60 -> 85.42507643 | E71: FT³/MIN
A72: Pipe Radius | B72: =(B70/12)/2 -> 0.4166666667 | C72: Design Flow | D72: =D71*7.481 -> 639.0649968 | E72: GAL/MIN
A73: Full Area (Afull = π*r²) | B73: =PI()*B72^2 -> 0.5454153912
A74: Wetted Perimeter (P = 2*π*r) | B74: =2*PI()*B72 -> 2.617993878 | C74: Model Flow | D74: =K69 ->  | E74: GAL/MIN
A75: Hydraulic Radius (R = A/P) | B75: =B73/B74 -> 0.2083333333 | C75: Capacity | D75: =D74/D72 -> 
A77: MH 8490 to 8489 | B77: Type | C77: Units | D77: Capacity/unit | E77: gdp/cap | F77: gal/day | G77: Avg. Flow (gpm) | H77: Population | I77: Peaking Factor | J77: Lift Station Flow (gpm) | K77: Calc. Peak (gpm)
A78: Southview Phase II | B78: Single Family Residential | C78: 15 | D78: =VLOOKUP(B78,#REF!,2,FALSE) ->  | E78: =VLOOKUP(B78,#REF!,3,FALSE) ->  | F78: =C78*E78*D78 ->  | G78: =F78/24/60 ->  | H78: =D78*C78 -> 
A79: Carry over from upstream | F79: =F69 ->  | G79: =G69 ->  | H79: =H69 -> 
A80: Sub total | C80: 0 | F80: =SUM(F78:F79) ->  | G80: =SUM(G78:G79) ->  | H80: =SUM(H78:H79) ->  | I80: =(18+SQRT(H80/1000))/(4+SQRT(H80/1000)) ->  | J80: =J69 -> 99 | K80: =G80*I80+J80 -> 
A81: Pipe Size (in) | B81: 8 | C81: Design Flow | D81: =(1.49/0.013)*B84*(B86^(2/3))*(B82^(1/2)) -> 0.7880485292 | E81: FT³/S
A82: Pipe Slope (S) (FT/FT) | B82: 0.00423 | C82: Design Flow | D82: =D81*60 -> 47.28291175 | E82: FT³/MIN
A83: Pipe Radius | B83: =(B81/12)/2 -> 0.3333333333 | C83: Design Flow | D83: =D82*7.481 -> 353.7234628 | E83: GAL/MIN
A84: Full Area (Afull = π*r²) | B84: =PI()*B83^2 -> 0.3490658504
A85: Wetted Perimeter (P = 2*π*r) | B85: =2*PI()*B83 -> 2.094395102 | C85: Model Flow | D85: =K80 ->  | E85: GAL/MIN
A86: Hydraulic Radius (R = A/P) | B86: =B84/B85 -> 0.1666666667 | C86: Capacity | D86: =D85/D83 -> 
A88: MH 8489 to 8488 | B88: Type | C88: Units | D88: Capacity/unit | E88: gdp/cap | F88: gal/day | G88: Avg. Flow (gpm) | H88: Population | I88: Peaking Factor | J88: Lift Station Flow (gpm) | K88: Calc. Peak (gpm)
A89: Southview Phase II | B89: Single Family Residential | C89: 8 | D89: =VLOOKUP(B89,#REF!,2,FALSE) ->  | E89: =VLOOKUP(B89,#REF!,3,FALSE) ->  | F89: =C89*E89*D89 ->  | G89: =F89/24/60 ->  | H89: =D89*C89 -> 
A90: Carry over from upstream | F90: =F80 ->  | G90: =G80 ->  | H90: =H80 -> 
A91: Sub total | C91: =SUM(C89:C89) -> 8 | F91: =SUM(F89:F90) ->  | G91: =SUM(G89:G90) ->  | H91: =SUM(H89:H90) ->  | I91: =(18+SQRT(H91/1000))/(4+SQRT(H91/1000)) ->  | J91: =J80 -> 99 | K91: =G91*I91+J91 -> 
A92: Pipe Size (in) | B92: 8 | C92: Design Flow | D92: =(1.49/0.013)*B95*(B97^(2/3))*(B93^(1/2)) -> 0.7690844472 | E92: FT³/S
A93: Pipe Slope (S) (FT/FT) | B93: 0.004028863 | C93: Design Flow | D93: =D92*60 -> 46.14506683 | E93: FT³/MIN
A94: Pipe Radius | B94: =(B92/12)/2 -> 0.3333333333 | C94: Design Flow | D94: =D93*7.481 -> 345.211245 | E94: GAL/MIN
A95: Full Area (Afull = π*r²) | B95: =PI()*B94^2 -> 0.3490658504
A96: Wetted Perimeter (P = 2*π*r) | B96: =2*PI()*B94 -> 2.094395102 | C96: Model Flow | D96: =K91 ->  | E96: GAL/MIN
A97: Hydraulic Radius (R = A/P) | B97: =B95/B96 -> 0.1666666667 | C97: Capacity | D97: =D96/D94 ->  | M97: over 80
A99: MH 8488 to 8487 | B99: Type | C99: Units | D99: Capacity/unit | E99: gdp/cap | F99: gal/day | G99: Avg. Flow (gpm) | H99: Population | I99: Peaking Factor | J99: Lift Station Flow (gpm) | K99: Calc. Peak (gpm)
A100: Southview Phase II | B100: Single Family Residential | C100: 8 | D100: =VLOOKUP(B100,#REF!,2,FALSE) ->  | E100: =VLOOKUP(B100,#REF!,3,FALSE) ->  | F100: =C100*E100*D100 ->  | G100: =F100/24/60 ->  | H100: =D100*C100 -> 
A101: Carry over from upstream | F101: =F91 ->  | G101: =G91 ->  | H101: =H91 -> 
A102: Sub total | C102: 0 | F102: =SUM(F100:F101) ->  | G102: =SUM(G100:G101) ->  | H102: =SUM(H100:H101) ->  | I102: =(18+SQRT(H102/1000))/(4+SQRT(H102/1000)) ->  | J102: =J91 -> 99 | K102: =G102*I102+J102 -> 
A103: Pipe Size (in) | B103: 8 | C103: Design Flow | D103: =(1.49/0.013)*B106*(B108^(2/3))*(B104^(1/2)) -> 0.8128099961 | E103: FT³/S
A104: Pipe Slope (S) (FT/FT) | B104: 0.0045 | C104: Design Flow | D104: =D103*60 -> 48.76859976 | E104: FT³/MIN
A105: Pipe Radius | B105: =(B103/12)/2 -> 0.3333333333 | C105: Design Flow | D105: =D104*7.481 -> 364.8378948 | E105: GAL/MIN
A106: Full Area (Afull = π*r²) | B106: =PI()*B105^2 -> 0.3490658504
A107: Wetted Perimeter (P = 2*π*r) | B107: =2*PI()*B105 -> 2.094395102 | C107: Model Flow | D107: =K102 ->  | E107: GAL/MIN
A108: Hydraulic Radius (R = A/P) | B108: =B106/B107 -> 0.1666666667 | C108: Capacity | D108: =D107/D105 -> 
A110: MH 8487 to 8484 | B110: Type | C110: Units | D110: Capacity/unit | E110: gdp/cap | F110: gal/day | G110: Avg. Flow (gpm) | H110: Population | I110: Peaking Factor | J110: Lift Station Flow (gpm) | K110: Calc. Peak (gpm)
A111: Southview Phase II | B111: Single Family Residential | C111: 6 | D111: =VLOOKUP(B111,#REF!,2,FALSE) ->  | E111: =VLOOKUP(B111,#REF!,3,FALSE) ->  | F111: =C111*E111*D111 ->  | G111: =F111/24/60 ->  | H111: =D111*C111 -> 
A112: Carry over from upstream | F112: =F102 ->  | G112: =G102 ->  | H112: =H102 -> 
A113: Sub total | C113: 0 | F113: =SUM(F111:F112) ->  | G113: =SUM(G111:G112) ->  | H113: =SUM(H111:H112) ->  | I113: =(18+SQRT(H113/1000))/(4+SQRT(H113/1000)) ->  | J113: =J102 -> 99 | K113: =G113*I113+J113 -> 
A114: Pipe Size (in) | B114: 8 | C114: Design Flow | D114: =(1.49/0.013)*B117*(B119^(2/3))*(B115^(1/2)) -> 1.23566131 | E114: FT³/S
A115: Pipe Slope (S) (FT/FT) | B115: 0.0104 | C115: Design Flow | D115: =D114*60 -> 74.13967862 | E115: FT³/MIN
A116: Pipe Radius | B116: =(B114/12)/2 -> 0.3333333333 | C116: Design Flow | D116: =D115*7.481 -> 554.6389358 | E116: GAL/MIN
A117: Full Area (Afull = π*r²) | B117: =PI()*B116^2 -> 0.3490658504
A118: Wetted Perimeter (P = 2*π*r) | B118: =2*PI()*B116 -> 2.094395102 | C118: Model Flow | D118: =K113 ->  | E118: GAL/MIN
A119: Hydraulic Radius (R = A/P) | B119: =B117/B118 -> 0.1666666667 | C119: Capacity | D119: =D118/D116 -> 
A121: MH 8484 to 8483 | B121: Type | C121: Units | D121: Capacity/unit | E121: gdp/cap | F121: gal/day | G121: Avg. Flow (gpm) | H121: Population | I121: Peaking Factor | J121: Lift Station Flow (gpm) | K121: Calc. Peak (gpm)
B122: Picnic park w/flush toilets | C122: 62.25 | D122: 1 | E122: 5 | F122: =C122*E122*D122 -> 311.25 | G122: =F122/24/60 -> 0.2161458333 | H122: =D122*C122 -> 62.25
B123: Country Club- Members | C123: 26.25 | D123: 1 | E123: 25 | F123: =C123*E123*D123 -> 656.25 | G123: =F123/24/60 -> 0.4557291667 | H123: =D123*C123 -> 26.25
B124: Country Club- Employees | C124: 7.5 | D124: 1 | E124: 13 | F124: =C124*E124*D124 -> 97.5 | G124: =F124/24/60 -> 0.06770833333 | H124: =D124*C124 -> 7.5
B125: assembly hall | C125: 52.5 | D125: 1 | E125: 4 | F125: =C125*E125*D125 -> 210 | G125: =F125/24/60 -> 0.1458333333 | H125: =D125*C125 -> 52.5
B126: Single Family Residential | C126: 4 | D126: =VLOOKUP(B126,#REF!,2,FALSE) ->  | E126: =VLOOKUP(B126,#REF!,3,FALSE) ->  | F126: =C126*E126*D126 ->  | G126: =F126/24/60 ->  | H126: =D126*C126 -> 
A127: Carry over from upstream | F127: =F113 ->  | G127: =G113 ->  | H127: =H113 -> 
A128: Sub total | C128: 0 | F128: =SUM(F122:F127) ->  | G128: =SUM(G122:G127) ->  | H128: =SUM(H122:H127) ->  | I128: =(18+SQRT(H128/1000))/(4+SQRT(H128/1000)) ->  | J128: =J113 -> 99 | K128: =G128*I128+J128 -> 
A129: Pipe Size (in) | B129: 8 | C129: Design Flow | D129: =(1.49/0.013)*B132*(B134^(2/3))*(B130^(1/2)) -> 1.24748609 | E129: FT³/S
A130: Pipe Slope (S) (FT/FT) | B130: 0.0106 | C130: Design Flow | D130: =D129*60 -> 74.8491654 | E130: FT³/MIN
A131: Pipe Radius | B131: =(B129/12)/2 -> 0.3333333333 | C131: Design Flow | D131: =D130*7.481 -> 559.9466063 | E131: GAL/MIN
A132: Full Area (Afull = π*r²) | B132: =PI()*B131^2 -> 0.3490658504
A133: Wetted Perimeter (P = 2*π*r) | B133: =2*PI()*B131 -> 2.094395102 | C133: Model Flow | D133: =K128 ->  | E133: GAL/MIN
A134: Hydraulic Radius (R = A/P) | B134: =B132/B133 -> 0.1666666667 | C134: Capacity | D134: =D133/D131 -> 
A136: MH 8483 to 8482 | B136: Type | C136: Units | D136: Capacity/unit | E136: gdp/cap | F136: gal/day | G136: Avg. Flow (gpm) | H136: Population | I136: Peaking Factor | J136: Lift Station Flow (gpm) | K136: Calc. Peak (gpm)
A137: Southview Subdivision Ph I | B137: Single Family Residential | C137: 10 | D137: =VLOOKUP(B137,#REF!,2,FALSE) ->  | E137: =VLOOKUP(B137,#REF!,3,FALSE) ->  | F137: =C137*E137*D137 ->  | G137: =F137/24/60 ->  | H137: =D137*C137 -> 
A138: Carry over from upstream | F138: =F128 ->  | G138: =G128 ->  | H138: =H128 -> 
A139: Sub total | F139: =SUM(F137:F138) ->  | G139: =SUM(G137:G138) ->  | H139: =SUM(H137:H138) ->  | I139: =(18+SQRT(H139/1000))/(4+SQRT(H139/1000)) ->  | J139: =J128 -> 99 | K139: =G139*I139+J139 -> 
A140: Pipe Size (in) | B140: 8 | C140: Design Flow | D140: =(1.49/0.013)*B143*(B145^(2/3))*(B141^(1/2)) -> 1.211665603 | E140: FT³/S
A141: Pipe Slope (S) (FT/FT) | B141: 0.01 | C141: Design Flow | D141: =D140*60 -> 72.69993616 | E141: FT³/MIN
A142: Pipe Radius | B142: =(B140/12)/2 -> 0.3333333333 | C142: Design Flow | D142: =D141*7.481 -> 543.8682224 | E142: GAL/MIN
A143: Full Area (Afull = π*r²) | B143: =PI()*B142^2 -> 0.3490658504
A144: Wetted Perimeter (P = 2*π*r) | B144: =2*PI()*B142 -> 2.094395102 | C144: Model Flow | D144: =K139 ->  | E144: GAL/MIN
A145: Hydraulic Radius (R = A/P) | B145: =B143/B144 -> 0.1666666667 | C145: Capacity | D145: =D144/D142 -> 
A147: MH 8482 to 8463 | B147: Type | C147: Units | D147: Capacity/unit | E147: gdp/cap | F147: gal/day | G147: Avg. Flow (gpm) | H147: Population | I147: Peaking Factor | J147: Lift Station Flow (gpm) | K147: Calc. Peak (gpm)
A148: Southview Subdivision Ph I | B148: Single Family Residential | C148: 13 | D148: =VLOOKUP(B148,#REF!,2,FALSE) ->  | E148: =VLOOKUP(B148,#REF!,3,FALSE) ->  | F148: =C148*E148*D148 ->  | G148: =F148/24/60 ->  | H148: =D148*C148 -> 
A149: Carry over from upstream | F149: =F139 ->  | G149: =G139 ->  | H149: =H139 -> 
A150: Sub total | F150: =SUM(F148:F149) ->  | G150: =SUM(G148:G149) ->  | H150: =SUM(H148:H149) ->  | I150: =(18+SQRT(H150/1000))/(4+SQRT(H150/1000)) ->  | J150: =J139 -> 99 | K150: =G150*I150+J150 -> 
A151: Pipe Size (in) | B151: 8 | C151: Design Flow | D151: =(1.49/0.013)*B154*(B156^(2/3))*(B152^(1/2)) -> 1.229706281 | E151: FT³/S
A152: Pipe Slope (S) (FT/FT) | B152: 0.0103 | C152: Design Flow | D152: =D151*60 -> 73.78237689 | E152: FT³/MIN
A153: Pipe Radius | B153: =(B151/12)/2 -> 0.3333333333 | C153: Design Flow | D153: =D152*7.481 -> 551.9659615 | E153: GAL/MIN
A154: Full Area (Afull = π*r²) | B154: =PI()*B153^2 -> 0.3490658504
A155: Wetted Perimeter (P = 2*π*r) | B155: =2*PI()*B153 -> 2.094395102 | C155: Model Flow | D155: =K150 ->  | E155: GAL/MIN
A156: Hydraulic Radius (R = A/P) | B156: =B154/B155 -> 0.1666666667 | C156: Capacity | D156: =D155/D153 -> 
A164: MH 8463 to 8462 | B164: Type | C164: Units | D164: Capacity/unit | E164: gdp/cap | F164: gal/day | G164: Avg. Flow (gpm) | H164: Population | I164: Peaking Factor | J164: Lift Station Flow (gpm) | K164: Calc. Peak (gpm)
A165: Southview Subdivision Ph I | B165: Single Family Residential | C165: 3 | D165: =VLOOKUP(B165,#REF!,2,FALSE) ->  | E165: =VLOOKUP(B165,#REF!,3,FALSE) ->  | F165: =C165*E165*D165 ->  | G165: =F165/24/60 ->  | H165: =D165*C165 -> 
A166: Carry over from upstream | F166: =F150 ->  | G166: =G150 ->  | H166: =H150 -> 
A167: Sub total | C167: 0 | F167: =SUM(F165:F166) ->  | G167: =SUM(G165:G166) ->  | H167: =SUM(H165:H166) ->  | I167: =(18+SQRT(H167/1000))/(4+SQRT(H167/1000)) ->  | J167: =J150 -> 99 | K167: =G167*I167+J167 -> 
A168: Pipe Size (in) | B168: 12 | C168: Design Flow | D168: =(1.49/0.013)*B171*(B173^(2/3))*(B169^(1/2)) -> 1.557170869 | E168: FT³/S
A169: Pipe Slope (S) (FT/FT) | B169: 0.0019 | C169: Design Flow | D169: =D168*60 -> 93.43025212 | E169: FT³/MIN
A170: Pipe Radius | B170: =(B168/12)/2 -> 0.5 | C170: Design Flow | D170: =D169*7.481 -> 698.9517161 | E170: GAL/MIN
A171: Full Area (Afull = π*r²) | B171: =PI()*B170^2 -> 0.7853981634
A172: Wetted Perimeter (P = 2*π*r) | B172: =2*PI()*B170 -> 3.141592654 | C172: Model Flow | D172: =K167 ->  | E172: GAL/MIN
A173: Hydraulic Radius (R = A/P) | B173: =B171/B172 -> 0.25 | C173: Capacity | D173: =D172/D170 -> 
A175: MH 8462 to 8261 | B175: Type | C175: Units | D175: Capacity/unit | E175: gdp/cap | F175: gal/day | G175: Avg. Flow (gpm) | H175: Population | I175: Peaking Factor | J175: Lift Station Flow (gpm) | K175: Calc. Peak (gpm)
A176: Southview Subdivision Ph I | B176: Single Family Residential | C176: 59 | D176: =VLOOKUP(B176,#REF!,2,FALSE) ->  | E176: =VLOOKUP(B176,#REF!,3,FALSE) ->  | F176: =C176*E176*D176 ->  | G176: =F176/24/60 ->  | H176: =D176*C176 -> 
A177: Carry over from upstream | F177: =F167 ->  | G177: =G167 ->  | H177: =H167 -> 
A178: Sub total | C178: 0 | F178: =SUM(F176:F177) ->  | G178: =SUM(G176:G177) ->  | H178: =SUM(H176:H177) ->  | I178: =(18+SQRT(H178/1000))/(4+SQRT(H178/1000)) ->  | J178: =J167 -> 99 | K178: =G178*I178+J178 -> 
A179: Pipe Size (in) | B179: 12 | C179: Design Flow | D179: =(1.49/0.013)*B182*(B184^(2/3))*(B180^(1/2)) -> 1.515638828 | E179: FT³/S
A180: Pipe Slope (S) (FT/FT) | B180: 0.0018 | C180: Design Flow | D180: =D179*60 -> 90.93832965 | E180: FT³/MIN
A181: Pipe Radius | B181: =(B179/12)/2 -> 0.5 | C181: Design Flow | D181: =D180*7.481 -> 680.3096441 | E181: GAL/MIN
A182: Full Area (Afull = π*r²) | B182: =PI()*B181^2 -> 0.7853981634
A183: Wetted Perimeter (P = 2*π*r) | B183: =2*PI()*B181 -> 3.141592654 | C183: Model Flow | D183: =K178 ->  | E183: GAL/MIN
A184: Hydraulic Radius (R = A/P) | B184: =B182/B183 -> 0.25 | C184: Capacity | D184: =D183/D181 -> 
A186: MH 8461 to 8460 | B186: Type | C186: Units | D186: Capacity/unit | E186: gdp/cap | F186: gal/day | G186: Avg. Flow (gpm) | H186: Population | I186: Peaking Factor | J186: Lift Station Flow (gpm) | K186: Calc. Peak (gpm)
A187: Southview Subdivision Ph 1 | B187: Single Family Residential | C187: 50 | D187: =VLOOKUP(B187,#REF!,2,FALSE) ->  | E187: =VLOOKUP(B187,#REF!,3,FALSE) ->  | F187: =C187*E187*D187 ->  | G187: =F187/24/60 ->  | H187: =D187*C187 -> 
A188: Carry over from upstream | F188: =F178 ->  | G188: =G178 ->  | H188: =H178 -> 
A189: Sub total | C189: 0 | F189: =SUM(F187:F188) ->  | G189: =SUM(G187:G188) ->  | H189: =SUM(H187:H188) ->  | I189: =(18+SQRT(H189/1000))/(4+SQRT(H189/1000)) ->  | J189: =J178 -> 99 | K189: =G189*I189+J189 -> 
A190: Pipe Size (in) | B190: 12 | C190: Design Flow | D190: =(1.49/0.013)*B193*(B195^(2/3))*(B191^(1/2)) -> 1.383582625 | E190: FT³/S
A191: Pipe Slope (S) (FT/FT) | B191: 0.0015 | C191: Design Flow | D191: =D190*60 -> 83.01495749 | E191: FT³/MIN
A192: Pipe Radius | B192: =(B190/12)/2 -> 0.5 | C192: Design Flow | D192: =D191*7.481 -> 621.034897 | E192: GAL/MIN
A193: Full Area (Afull = π*r²) | B193: =PI()*B192^2 -> 0.7853981634
A194: Wetted Perimeter (P = 2*π*r) | B194: =2*PI()*B192 -> 3.141592654 | C194: Model Flow | D194: =K189 ->  | E194: GAL/MIN
A195: Hydraulic Radius (R = A/P) | B195: =B193/B194 -> 0.25 | C195: Capacity | D195: =D194/D192 -> 
A197: MH 8460 to 8459 | B197: Type | C197: Units | D197: Capacity/unit | E197: gdp/cap | F197: gal/day | G197: Avg. Flow (gpm) | H197: Population | I197: Peaking Factor | J197: Lift Station Flow (gpm) | K197: Calc. Peak (gpm)
A198: Lowell Estates Subdivision | B198: Single Family Residential | C198: 5 | D198: =VLOOKUP(B198,#REF!,2,FALSE) ->  | E198: =VLOOKUP(B198,#REF!,3,FALSE) ->  | F198: =C198*E198*D198 ->  | G198: =F198/24/60 ->  | H198: =D198*C198 -> 
A199: Carry over from upstream | F199: =F189 ->  | G199: =G189 ->  | H199: =H189 -> 
A200: Sub total | C200: 0 | F200: =SUM(F198:F199) ->  | G200: =SUM(G198:G199) ->  | H200: =SUM(H198:H199) ->  | I200: =(18+SQRT(H200/1000))/(4+SQRT(H200/1000)) ->  | J200: =J189 -> 99 | K200: =G200*I200+J200 -> 
A201: Pipe Size (in) | B201: 12 | C201: Design Flow | D201: =(1.49/0.013)*B204*(B206^(2/3))*(B202^(1/2)) -> 1.557170869 | E201: FT³/S
A202: Pipe Slope (S) (FT/FT) | B202: 0.0019 | C202: Design Flow | D202: =D201*60 -> 93.43025212 | E202: FT³/MIN
A203: Pipe Radius | B203: =(B201/12)/2 -> 0.5 | C203: Design Flow | D203: =D202*7.481 -> 698.9517161 | E203: GAL/MIN
A204: Full Area (Afull = π*r²) | B204: =PI()*B203^2 -> 0.7853981634
A205: Wetted Perimeter (P = 2*π*r) | B205: =2*PI()*B203 -> 3.141592654 | C205: Model Flow | D205: =K200 ->  | E205: GAL/MIN
A206: Hydraulic Radius (R = A/P) | B206: =B204/B205 -> 0.25 | C206: Capacity | D206: =D205/D203 -> 
A208: MH 8459 to 8450 | B208: Type | C208: Units | D208: Capacity/unit | E208: gdp/cap | F208: gal/day | G208: Avg. Flow (gpm) | H208: Population | I208: Peaking Factor | J208: Lift Station Flow (gpm) | K208: Calc. Peak (gpm)
A209: Lowell Estates Subdivision | B209: Single Family Residential | C209: 9 | D209: =VLOOKUP(B209,#REF!,2,FALSE) ->  | E209: =VLOOKUP(B209,#REF!,3,FALSE) ->  | F209: =C209*E209*D209 ->  | G209: =F209/24/60 ->  | H209: =D209*C209 -> 
A210: Carry over from upstream | F210: =F200 ->  | G210: =G200 ->  | H210: =H200 -> 
A211: Sub total | C211: 0 | F211: =SUM(F209:F210) ->  | G211: =SUM(G209:G210) ->  | H211: =SUM(H209:H210) ->  | I211: =(18+SQRT(H211/1000))/(4+SQRT(H211/1000)) ->  | J211: =J200 -> 99 | K211: =G211*I211+J211 -> 
A212: Pipe Size (in) | B212: 12 | C212: Design Flow | D212: =(1.49/0.013)*B215*(B217^(2/3))*(B213^(1/2)) -> 1.856270881 | E212: FT³/S
A213: Pipe Slope (S) (FT/FT) | B213: 0.0027 | C213: Design Flow | D213: =D212*60 -> 111.3762529 | E213: FT³/MIN
A214: Pipe Radius | B214: =(B212/12)/2 -> 0.5 | C214: Design Flow | D214: =D213*7.481 -> 833.2057476 | E214: GAL/MIN
A215: Full Area (Afull = π*r²) | B215: =PI()*B214^2 -> 0.7853981634
A216: Wetted Perimeter (P = 2*π*r) | B216: =2*PI()*B214 -> 3.141592654 | C216: Model Flow | D216: =K211 ->  | E216: GAL/MIN
A217: Hydraulic Radius (R = A/P) | B217: =B215/B216 -> 0.25 | C217: Capacity | D217: =D216/D214 -> 
A219: MH 8450 to 8429 | B219: Type | C219: Units | D219: Capacity/unit | E219: gdp/cap | F219: gal/day | G219: Avg. Flow (gpm) | H219: Population | I219: Peaking Factor | J219: Lift Station Flow (gpm) | K219: Calc. Peak (gpm)
A220: Lowell Estates Subdivision | B220: Single Family Residential | C220: 61 | D220: =VLOOKUP(B220,#REF!,2,FALSE) ->  | E220: =VLOOKUP(B220,#REF!,3,FALSE) ->  | F220: =C220*E220*D220 ->  | G220: =F220/24/60 ->  | H220: =D220*C220 -> 
A221: Carry over from upstream | F221: =F211 ->  | G221: =G211 ->  | H221: =H211 -> 
A222: Sub total | C222: 0 | F222: =SUM(F220:F221) ->  | G222: =SUM(G220:G221) ->  | H222: =SUM(H220:H221) ->  | I222: =(18+SQRT(H222/1000))/(4+SQRT(H222/1000)) ->  | J222: =J211 -> 99 | K222: =G222*I222+J222 -> 
A223: Pipe Size (in) | B223: 12 | C223: Design Flow | D223: =(1.49/0.013)*B226*(B228^(2/3))*(B224^(1/2)) -> 1.515638828 | E223: FT³/S
A224: Pipe Slope (S) (FT/FT) | B224: 0.0018 | C224: Design Flow | D224: =D223*60 -> 90.93832965 | E224: FT³/MIN
A225: Pipe Radius | B225: =(B223/12)/2 -> 0.5 | C225: Design Flow | D225: =D224*7.481 -> 680.3096441 | E225: GAL/MIN
A226: Full Area (Afull = π*r²) | B226: =PI()*B225^2 -> 0.7853981634
A227: Wetted Perimeter (P = 2*π*r) | B227: =2*PI()*B225 -> 3.141592654 | C227: Model Flow | D227: =K222 ->  | E227: GAL/MIN
A228: Hydraulic Radius (R = A/P) | B228: =B226/B227 -> 0.25 | C228: Capacity | D228: =D227/D225 -> 
A230: MH 8429 to 8428 | B230: Type | C230: Units | D230: Capacity/unit | E230: gdp/cap | F230: gal/day | G230: Avg. Flow (gpm) | H230: Population | I230: Peaking Factor | J230: Lift Station Flow (gpm) | K230: Calc. Peak (gpm)
A231: Greene Acres/ Miller Addition | B231: Single Family Residential | C231: 28 | D231: =VLOOKUP(B231,#REF!,2,FALSE) ->  | E231: =VLOOKUP(B231,#REF!,3,FALSE) ->  | F231: =C231*E231*D231 ->  | G231: =F231/24/60 ->  | H231: =D231*C231 -> 
B232: Apartment | C232: 12 | D232: =VLOOKUP(B232,#REF!,2,FALSE) ->  | E232: =VLOOKUP(B232,#REF!,3,FALSE) ->  | F232: =C232*E232*D232 ->  | G232: =F232/24/60 ->  | H232: =D232*C232 -> 
... 59 more rows
